{"text_format":"1","workbook":"xlsx","n_sheets":8,"sheets":["Титул","График","План","Комплесные","Компетенции","Кабинеты","Пояснения","Start"],"not_rendered":{"charts":0,"images":1,"macros":1,"external_links":0,"defined_names":0,"comments":0,"pivot_tables":0},"unopened":[],"bounds":{"document_bytes":16777216,"sheet_cells":100000,"rows_first":2000,"rows_last":500,"rows_between":2000,"halvings":0,"cell_chars":16384,"cell_head_chars":4096},"cells_cut":0,"cells_raw":0,"read":"whole","date_system":"1900"}

{"sheet":"Титул","index":0,"n_rows":32,"n_cols":45,"rows_kept":32,"cut":false,"hidden":false,"merged":[[28,0,28,19],[28,20,28,47],[29,20,29,47],[31,0,31,10],[31,11,31,12],[31,13,31,17],[31,18,31,19],[31,20,31,25],[21,6,21,47],[22,6,22,47],[23,6,23,47],[24,6,24,47],[26,0,26,5],[26,6,26,13],[26,15,26,27],[26,28,26,32],[26,34,26,43],[26,44,26,47],[17,0,17,8],[18,0,18,5],[18,6,18,47],[19,6,19,47],[20,6,20,47],[14,0,14,5],[14,6,14,46],[15,0,15,13],[15,15,15,47],[16,15,16,47],[10,0,10,47],[11,0,11,47],[12,0,12,47],[13,0,13,4],[13,6,13,47],[5,0,6,2],[5,3,6,11],[5,31,6,47],[8,0,8,47],[9,0,9,47],[0,6,0,30],[0,31,0,47],[1,31,1,47],[3,31,3,47],[4,0,4,11],[4,31,4,47]]}
[null,null,null,null,null,null,null,null,null,null,null,null,null,null,null,null,null,null,null,null,null,null,null,null,null,null,null,null,null,null,null,"Утверждаю"]
[]
[]
[null,null,null,null,null,null,null,null,null,null,null,null,null,null,null,null,null,null,null,null,null,null,null,null,null,null,null,null,null,null,null,"Васина Е.В."]
["Методическим Советом"]
["Протокол №",null,null,"4 от 17.11.2021"]
[]
[]
["УЧЕБНЫЙ ПЛАН"]
["программы подготовки квалифицированых рабочих, служащих"]
["  Санкт-Петербургское государственное бюджетное   профессиональное образовательное учреждение   СПб ГБПОУ «Петровский колледж»"]
["наименование образовательного учреждения (организации)"]
["по профессии среднего профессионального образования"]
["54.01.20",null,null,null,null,null,"Графический дизайнер"]
["код",null,null,null,null,null,"наименование профессии"]
[null,null,null,null,null,null,null,null,null,null,null,null,null,null,null,"среднее общее образование"]
[null,null,null,null,null,null,null,null,null,null,null,null,null,null,null,"Уровень образования, необходимый для приема на обучение"]
[]
["квалификация:",null,null,null,null,null,"Графический дизайнер"]
[null,null,null,null,null,null,"20 7"]
[null,null,null,null,null,null,"21 7"]
[null,null,null,null,null,null,"22 7"]
[null,null,null,null,null,null,"23 7"]
[null,null,null,null,null,null,"24 7"]
[null,null,null,null,null,null,"25 7"]
[]
["форма обучения",null,null,null,null,null,"Очная",null,null,null,null,null,null,null,null,"Нормативный срок освоения ППКРС",null,null,null,null,null,null,null,null,null,null,null,null,"1г 10м",null,null,null,null,null,"год начала подготовки по УП",null,null,null,null,null,null,null,null,null,2023]
[]
["профиль получаемого профессионального образования",null,null,null,null,null,null,null,null,null,null,null,null,null,null,null,null,null,null,null,"Социально-экономический"]
[null,null,null,null,null,null,null,null,null,null,null,null,null,null,null,null,null,null,null,null,"при реализации программы среднего общего образования"]
[]
["Приказ об утверждении ФГОС",null,null,null,null,null,null,null,null,null,null,"от ",null,"09.12.2016",null,null,null,null,"     № ",null,"1543"]

{"sheet":"График","index":1,"n_rows":183,"n_cols":66,"rows_kept":183,"cut":false,"hidden":false,"merged":[[182,33,182,34],[182,1,182,3],[182,4,182,6],[182,7,182,9],[182,10,182,12],[182,13,182,15],[182,16,182,18],[182,35,182,37],[182,38,182,40],[182,41,182,43],[182,44,182,47],[182,48,182,50],[182,19,182,21],[182,22,182,24],[182,25,182,27],[182,28,182,30],[182,31,182,32],[181,1,181,3],[181,4,181,6],[181,7,181,9],[181,10,181,12],[181,13,181,15],[181,16,181,18],[181,19,181,21],[181,22,181,24],[181,25,181,27],[181,28,181,30],[181,31,181,32],[181,33,181,34],[181,35,181,37],[181,38,181,40],[181,41,181,43],[181,44,181,47],[181,48,181,50],[180,1,180,3],[180,4,180,6],[180,7,180,9],[180,10,180,12],[180,13,180,15],[180,16,180,18],[180,19,180,21],[180,22,180,24],[180,25,180,27],[180,28,180,30],[180,31,180,32],[180,33,180,34],[180,35,180,37],[180,38,180,40],[180,41,180,43],[180,44,180,47],[180,48,180,50],[179,1,179,3],[179,4,179,6],[179,7,179,9],[179,10,179,12],[179,13,179,15],[179,16,179,18],[179,19,179,21],[179,22,179,24],[179,25,179,27],[179,28,179,30],[179,31,179,32],[179,33,179,34],[179,35,179,37],[179,38,179,40],[179,41,179,43],[179,44,179,47],[179,48,179,50],[177,44,177,47],[177,48,177,50],[178,1,178,3],[178,4,178,6],[178,7,178,9],[178,10,178,12],[178,13,178,15],[178,16,178,18],[178,19,178,21],[178,22,178,24],[178,25,178,27],[178,28,178,30],[178,31,178,32],[178,33,178,34],[178,35,178,37],[178,38,178,40],[178,41,178,43],[178,44,178,47],[178,48,178,50],[176,35,176,37],[176,38,176,40],[176,41,176,43],[177,1,177,3],[177,4,177,6],[177,7,177,9],[177,10,177,12],[177,13,177,15],[177,16,177,18],[177,19,177,21],[177,22,177,24],[177,25,177,27],[177,28,177,30],[177,31,177,32],[177,33,177,34],[177,35,177,37],[177,38,177,40],[177,41,177,43],[173,0,176,0],[173,1,174,18],[173,19,174,27],[173,28,173,34],[173,35,173,37],[173,38,175,40],[173,41,175,43],[173,44,176,47],[173,48,176,50],[174,28,174,34],[174,35,175,37],[175,1,175,6],[175,7,175,12],[175,13,175,18],[175,19,175,21],[175,22,175,24],[175,25,175,27],[175,28,175,30],[175,31,175,32],[175,33,175,34],[176,1,176,3],[176,4,176,6],[176,7,176,9],[176,10,176,12],[176,13,176,15],[176,16,176,18],[176,19,176,21],[176,22,176,24],[176,25,176,27],[176,28,176,30],[176,31,176,32],[176,33,176,34],[170,48,170,50],[170,51,170,54],[170,55,170,57],[171,1,171,6],[171,7,171,12],[171,13,171,18],[171,19,171,21],[171,22,171,24],[171,25,171,27],[171,28,171,30],[171,31,171,32],[171,33,171,34],[171,35,171,37],[171,38,171,39],[171,40,171,41],[171,42,171,44],[171,45,171,47],[171,48,171,50],[171,51,171,54],[171,55,171,57],[170,1,170,3],[170,4,170,6],[170,7,170,9],[170,10,170,12],[170,13,170,15],[170,16,170,18],[170,19,170,21],[170,22,170,24],[170,25,170,27],[170,28,170,30],[170,31,170,32],[170,33,170,34],[170,35,170,37],[170,38,170,39],[170,40,170,41],[170,42,170,44],[170,45,170,47],[168,48,168,50],[168,51,168,54],[168,55,168,57],[169,1,169,3],[169,4,169,6],[169,7,169,9],[169,10,169,12],[169,13,169,15],[169,16,169,18],[169,19,169,21],[169,22,169,24],[169,25,169,27],[169,28,169,30],[169,31,169,32],[169,33,169,34],[169,35,169,37],[169,38,169,39],[169,40,169,41],[169,42,169,44],[169,45,169,47],[169,48,169,50],[169,51,169,54],[169,55,169,57],[168,1,168,3],[168,4,168,6],[168,7,168,9],[168,10,168,12],[168,13,168,15],[168,16,168,18],[168,19,168,21],[168,22,168,24],[168,25,168,27],[168,28,168,30],[168,31,168,32],[168,33,168,34],[168,35,168,37],[168,38,168,39],[168,40,168,41],[168,42,168,44],[168,45,168,47],[166,51,166,54],[166,55,166,57],[167,1,167,6],[167,7,167,12],[167,13,167,18],[167,19,167,21],[167,22,167,24],[167,25,167,27],[167,28,167,30],[167,31,167,32],[167,33,167,34],[167,35,167,37],[167,38,167,39],[167,40,167,41],[167,42,167,44],[167,45,167,47],[167,48,167,50],[167,51,167,54],[167,55,167,57],[165,33,165,34],[165,35,165,37],[165,38,165,39],[165,40,165,41],[165,42,165,44],[165,45,165,47],[165,48,165,50],[166,1,166,6],[166,7,166,12],[166,13,166,18],[166,19,166,21],[166,22,166,24],[166,25,166,27],[166,28,166,30],[166,31,166,32],[166,33,166,34],[166,35,166,37],[166,38,166,39],[166,40,166,41],[166,42,166,44],[166,45,166,47],[166,48,166,50],[162,0,165,0],[162,1,163,18],[162,19,163,27],[162,28,162,41],[162,42,162,44],[162,45,164,47],[164,1,164,6],[164,7,164,12],[164,13,164,18],[164,19,164,21],[162,48,164,50],[162,51,165,54],[162,55,165,57],[163,28,163,34],[163,35,163,41],[163,42,164,44],[164,38,164,39],[164,40,164,41],[165,28,165,30],[165,31,165,32],[164,22,164,24],[164,25,164,27],[164,28,164,30],[164,31,164,32],[164,33,164,34],[164,35,164,37],[165,1,165,6],[165,7,165,12],[165,13,165,18],[165,19,165,21],[165,22,165,24],[165,25,165,27],[159,48,159,50],[159,51,159,53],[159,54,159,57],[159,58,159,60],[160,1,160,3],[160,4,160,6],[160,7,160,9],[160,10,160,12],[160,13,160,15],[160,16,160,18],[160,19,160,21],[160,22,160,24],[160,25,160,27],[160,28,160,30],[160,31,160,32],[160,33,160,34],[160,35,160,37],[160,38,160,39],[160,40,160,41],[160,42,160,44],[160,45,160,47],[160,48,160,50],[160,51,160,53],[160,54,160,57],[160,58,160,60],[159,1,159,3],[159,4,159,6],[159,7,159,9],[159,10,159,12],[159,13,159,15],[159,16,159,18],[159,19,159,21],[159,22,159,24],[159,25,159,27],[159,28,159,30],[159,31,159,32],[159,33,159,34],[159,35,159,37],[159,38,159,39],[159,40,159,41],[159,42,159,44],[159,45,159,47],[157,48,157,50],[157,51,157,53],[157,54,157,57],[157,58,157,60],[158,1,158,3],[158,4,158,6],[158,7,158,9],[158,10,158,12],[158,13,158,15],[158,16,158,18],[158,19,158,21],[158,22,158,24],[158,25,158,27],[158,28,158,30],[158,31,158,32],[158,33,158,34],[158,35,158,37],[158,38,158,39],[158,40,158,41],[158,42,158,44],[158,45,158,47],[158,48,158,50],[158,51,158,53],[158,54,158,57],[158,58,158,60],[157,1,157,3],[157,4,157,6],[157,7,157,9],[157,10,157,12],[157,13,157,15],[157,16,157,18],[157,19,157,21],[157,22,157,24],[157,25,157,27],[157,28,157,30],[157,31,157,32],[157,33,157,34],[157,35,157,37],[157,38,157,39],[157,40,157,41],[157,42,157,44],[157,45,157,47],[155,48,155,50],[155,51,155,53],[155,54,155,57],[155,58,155,60],[156,1,156,3],[156,4,156,6],[156,7,156,9],[156,10,156,12],[156,13,156,15],[156,16,156,18],[156,19,156,21],[156,22,156,24],[156,25,156,27],[156,28,156,30],[156,31,156,32],[156,33,156,34],[156,35,156,37],[156,38,156,39],[156,40,156,41],[156,42,156,44],[156,45,156,47],[156,48,156,50],[156,51,156,53],[156,54,156,57],[156,58,156,60],[155,1,155,3],[155,4,155,6],[155,7,155,9],[155,10,155,12],[155,13,155,15],[155,16,155,18],[155,19,155,21],[155,22,155,24],[155,25,155,27],[155,28,155,30],[155,31,155,32],[155,33,155,34],[155,35,155,37],[155,38,155,39],[155,40,155,41],[155,42,155,44],[155,45,155,47],[153,48,153,50],[153,51,153,53],[153,54,153,57],[153,58,153,60],[154,1,154,3],[154,4,154,6],[154,7,154,9],[154,10,154,12],[154,13,154,15],[154,16,154,18],[154,19,154,21],[154,22,154,24],[154,25,154,27],[154,28,154,30],[154,31,154,32],[154,33,154,34],[154,35,154,37],[154,38,154,39],[154,40,154,41],[154,42,154,44],[154,45,154,47],[154,48,154,50],[154,51,154,53],[154,54,154,57],[154,58,154,60],[153,1,153,3],[153,4,153,6],[153,7,153,9],[153,10,153,12],[153,13,153,15],[153,16,153,18],[153,19,153,21],[153,22,153,24],[153,25,153,27],[153,28,153,30],[153,31,153,32],[153,33,153,34],[153,35,153,37],[153,38,153,39],[153,40,153,41],[153,42,153,44],[153,45,153,47],[151,48,151,50],[151,51,151,53],[151,54,151,57],[151,58,151,60],[152,1,152,3],[152,4,152,6],[152,7,152,9],[152,10,152,12],[152,13,152,15],[152,16,152,18],[152,19,152,21],[152,22,152,24],[152,25,152,27],[152,28,152,30],[152,31,152,32],[152,33,152,34],[152,35,152,37],[152,38,152,39],[152,40,152,41],[152,42,152,44],[152,45,152,47],[152,48,152,50],[152,51,152,53],[152,54,152,57],[152,58,152,60],[151,1,151,3],[151,4,151,6],[151,7,151,9],[151,10,151,12],[151,13,151,15],[151,16,151,18],[151,19,151,21],[151,22,151,24],[151,25,151,27],[151,28,151,30],[151,31,151,32],[151,33,151,34],[151,35,151,37],[151,38,151,39],[151,40,151,41],[151,42,151,44],[151,45,151,47],[149,48,149,50],[149,51,149,53],[149,54,149,57],[149,58,149,60],[150,1,150,3],[150,4,150,6],[150,7,150,9],[150,10,150,12],[150,13,150,15],[150,16,150,18],[150,19,150,21],[150,22,150,24],[150,25,150,27],[150,28,150,30],[150,31,150,32],[150,33,150,34],[150,35,150,37],[150,38,150,39],[150,40,150,41],[150,42,150,44],[150,45,150,47],[150,48,150,50],[150,51,150,53],[150,54,150,57],[150,58,150,60],[149,1,149,3],[149,4,149,6],[149,7,149,9],[149,10,149,12],[149,13,149,15],[149,16,149,18],[149,19,149,21],[149,22,149,24],[149,25,149,27],[149,28,149,30],[149,31,149,32],[149,33,149,34],[149,35,149,37],[149,38,149,39],[149,40,149,41],[149,42,149,44],[149,45,149,47],[148,4,148,6],[148,7,148,9],[148,10,148,12],[148,13,148,15],[148,16,148,18],[148,19,148,21],[148,22,148,24],[148,25,148,27],[148,28,148,30],[148,31,148,32],[148,33,148,34],[148,38,148,39],[148,40,148,41],[148,42,148,44],[148,45,148,47],[148,48,148,50],[148,51,148,53],[144,0,144,56],[144,57,144,63],[143,38,143,39],[143,40,143,41],[143,42,143,44],[145,0,148,0],[145,1,146,18],[145,19,146,27],[145,28,145,41],[145,42,145,47],[145,48,147,50],[147,1,147,6],[147,7,147,12],[147,13,147,18],[147,19,147,21],[145,51,147,53],[145,54,148,57],[145,58,148,60],[146,28,146,34],[146,35,146,41],[146,42,147,44],[146,45,147,47],[147,38,147,39],[147,40,147,41],[148,35,148,37],[147,22,147,24],[147,25,147,27],[147,28,147,30],[147,31,147,32],[147,33,147,34],[147,35,147,37],[148,1,148,3],[142,58,142,60],[142,61,142,64],[142,65,142,67],[143,1,143,3],[143,4,143,6],[143,7,143,9],[143,10,143,12],[143,13,143,15],[143,16,143,18],[143,19,143,21],[143,45,143,46],[143,47,143,48],[143,49,143,51],[143,22,143,24],[143,25,143,27],[143,28,143,30],[143,31,143,32],[143,33,143,34],[143,35,143,37],[143,52,143,54],[143,55,143,57],[143,58,143,60],[143,61,143,64],[143,65,143,67],[142,1,142,3],[142,4,142,6],[142,7,142,9],[142,10,142,12],[142,13,142,15],[142,16,142,18],[142,19,142,21],[142,22,142,24],[142,25,142,27],[142,28,142,30],[142,31,142,32],[142,33,142,34],[142,35,142,37],[142,38,142,39],[142,40,142,41],[142,42,142,44],[142,45,142,46],[140,47,140,48],[140,49,140,51],[140,52,140,54],[140,55,140,57],[140,16,140,18],[140,19,140,21],[140,22,140,24],[140,25,140,27],[140,28,140,30],[140,31,140,32],[140,33,140,34],[140,35,140,37],[140,38,140,39],[140,40,140,41],[140,42,140,44],[140,45,140,46],[142,47,142,48],[142,49,142,51],[142,52,142,54],[142,55,142,57],[140,58,140,60],[140,61,140,64],[140,65,140,67],[141,1,141,3],[141,4,141,6],[141,7,141,9],[141,10,141,12],[141,13,141,15],[141,16,141,18],[141,19,141,21],[141,22,141,24],[141,25,141,27],[141,28,141,30],[141,31,141,32],[141,33,141,34],[141,35,141,37],[141,38,141,39],[141,40,141,41],[141,42,141,44],[141,45,141,46],[141,47,141,48],[141,49,141,51],[141,52,141,54],[141,55,141,57],[141,58,141,60],[141,61,141,64],[141,65,141,67],[140,1,140,3],[140,4,140,6],[140,7,140,9],[140,10,140,12],[140,13,140,15],[138,47,138,48],[138,49,138,51],[138,52,138,54],[138,55,138,57],[138,58,138,60],[138,61,138,64],[138,65,138,67],[139,1,139,3],[139,4,139,6],[139,7,139,9],[139,10,139,12],[139,13,139,15],[139,16,139,18],[139,19,139,21],[139,22,139,24],[139,25,139,27],[139,28,139,30],[139,31,139,32],[139,33,139,34],[139,35,139,37],[139,38,139,39],[139,40,139,41],[139,42,139,44],[139,45,139,46],[139,47,139,48],[139,49,139,51],[139,52,139,54],[139,55,139,57],[139,58,139,60],[139,61,139,64],[139,65,139,67],[138,1,138,3],[138,4,138,6],[138,7,138,9],[138,10,138,12],[138,13,138,15],[138,16,138,18],[138,19,138,21],[138,22,138,24],[138,25,138,27],[138,28,138,30],[138,31,138,32],[138,33,138,34],[138,35,138,37],[138,38,138,39],[138,40,138,41],[138,42,138,44],[138,45,138,46],[136,47,136,48],[136,7,136,9],[136,10,136,12],[136,13,136,15],[136,16,136,18],[136,19,136,21],[136,22,136,24],[136,25,136,27],[136,28,136,30],[136,31,136,32],[136,33,136,34],[136,35,136,37],[136,38,136,39],[136,40,136,41],[136,42,136,44],[136,45,136,46],[136,49,136,51],[136,52,136,54],[136,55,136,57],[136,58,136,60],[136,61,136,64],[136,65,136,67],[137,1,137,3],[137,4,137,6],[137,7,137,9],[137,10,137,12],[137,13,137,15],[137,16,137,18],[137,19,137,21],[137,22,137,24],[137,25,137,27],[137,28,137,30],[137,31,137,32],[137,33,137,34],[137,35,137,37],[137,38,137,39],[137,40,137,41],[137,42,137,44],[137,45,137,46],[137,47,137,48],[137,49,137,51],[137,52,137,54],[137,55,137,57],[137,58,137,60],[137,61,137,64],[137,65,137,67],[136,1,136,3],[136,4,136,6],[134,65,134,67],[135,1,135,3],[135,4,135,6],[135,7,135,9],[135,10,135,12],[135,13,135,15],[135,16,135,18],[135,19,135,21],[135,22,135,24],[135,25,135,27],[135,28,135,30],[135,31,135,32],[135,33,135,34],[135,35,135,37],[135,38,135,39],[135,40,135,41],[135,42,135,44],[135,45,135,46],[135,47,135,48],[135,49,135,51],[135,52,135,54],[135,55,135,57],[135,58,135,60],[135,61,135,64],[135,65,135,67],[134,1,134,3],[134,4,134,6],[134,7,134,9],[134,10,134,12],[134,13,134,15],[134,16,134,18],[134,19,134,21],[134,22,134,24],[134,25,134,27],[134,28,134,30],[134,31,134,32],[134,33,134,34],[134,35,134,37],[134,38,134,39],[134,40,134,41],[134,42,134,44],[134,45,134,46],[132,61,132,64],[134,47,134,48],[134,49,134,51],[134,52,134,54],[134,55,134,57],[134,58,134,60],[134,61,134,64],[132,65,132,67],[133,1,133,3],[133,4,133,6],[133,7,133,9],[133,10,133,12],[133,13,133,15],[133,16,133,18],[133,19,133,21],[133,22,133,24],[133,25,133,27],[133,28,133,30],[133,31,133,32],[133,33,133,34],[133,35,133,37],[133,38,133,39],[133,40,133,41],[133,42,133,44],[133,45,133,46],[133,47,133,48],[133,49,133,51],[133,52,133,54],[133,55,133,57],[133,58,133,60],[133,61,133,64],[133,65,133,67],[131,49,131,51],[131,52,131,54],[131,55,131,57],[131,58,131,60],[132,1,132,3],[132,4,132,6],[132,7,132,9],[132,10,132,12],[132,13,132,15],[132,16,132,18],[132,19,132,21],[132,22,132,24],[132,25,132,27],[132,28,132,30],[132,31,132,32],[132,33,132,34],[132,35,132,37],[132,38,132,39],[132,40,132,41],[132,42,132,44],[132,45,132,46],[132,47,132,48],[132,49,132,51],[132,52,132,54],[132,55,132,57],[132,58,132,60],[130,38,130,39],[130,40,130,41],[130,42,130,44],[130,45,130,46],[130,47,130,48],[131,1,131,3],[131,4,131,6],[131,7,131,9],[131,10,131,12],[131,13,131,15],[131,16,131,18],[131,19,131,21],[131,22,131,24],[131,25,131,27],[131,28,131,30],[131,31,131,32],[131,33,131,34],[131,35,131,37],[131,38,131,39],[131,40,131,41],[131,42,131,44],[131,45,131,46],[131,47,131,48],[122,7,122,16],[122,25,122,41],[122,44,122,57],[124,7,124,16],[124,25,124,41],[124,44,124,53],[126,0,126,52],[127,0,127,63],[128,0,131,0],[128,1,129,18],[128,19,129,27],[128,28,128,48],[128,49,128,54],[128,55,130,57],[128,58,130,60],[128,61,131,64],[128,65,131,67],[129,28,129,34],[129,35,129,41],[129,42,129,48],[129,49,130,51],[129,52,130,54],[130,28,130,30],[130,31,130,32],[130,33,130,34],[130,35,130,37],[130,1,130,6],[130,7,130,12],[130,13,130,18],[130,19,130,21],[130,22,130,24],[130,25,130,27],[113,46,118,46],[113,47,118,47],[113,36,118,36],[113,37,118,37],[113,38,118,38],[113,39,118,39],[113,40,118,40],[113,48,118,48],[113,49,118,49],[113,50,118,50],[113,51,118,51],[113,52,118,52],[120,0,120,5],[120,7,120,22],[120,25,120,31],[120,44,120,63],[113,42,118,42],[113,22,118,22],[113,23,118,23],[113,24,118,24],[113,25,118,25],[113,26,118,26],[113,27,118,27],[113,28,118,28],[113,29,118,29],[113,41,118,41],[113,30,118,30],[113,31,118,31],[113,32,118,32],[113,33,118,33],[113,34,118,34],[113,43,118,43],[113,44,118,44],[106,48,111,48],[106,49,111,49],[106,50,111,50],[106,51,111,51],[106,52,111,52],[112,1,112,52],[106,42,111,42],[106,43,111,43],[106,44,111,44],[106,45,111,45],[113,0,118,0],[113,1,118,1],[113,2,118,2],[113,3,118,3],[113,4,118,4],[113,5,118,5],[113,6,118,6],[113,7,118,7],[113,8,118,8],[113,9,118,9],[113,10,118,10],[113,11,118,11],[113,12,118,12],[113,13,118,13],[113,14,118,14],[113,15,118,15],[113,16,118,16],[113,17,118,17],[113,18,118,18],[113,45,118,45],[113,19,118,19],[113,20,118,20],[113,21,118,21],[106,22,111,22],[106,23,111,23]],"merged_total":2194,"flags":["merged_cut"]}
[]
["1 Календарный учебный график"]
["Курс","Сентябрь",null,null,null,"29 сен - 5 окт","Октябрь",null,null,"27 окт - 2 ноя","Ноябрь",null,null,null,"Декабрь",null,null,null,"29 дек - 4 янв","Январь",null,null,"26 янв - 1 фев","Февраль",null,null,"23 фев - 1 мар","Март",null,null,null,"30 мар - 5 апр","Апрель",null,null,"27 апр - 3 май","Май",null,null,null,"Июнь",null,null,null,"29 июн - 5 июл","Июль",null,null,"27 июл -2 авг","Август"]
[null,"1 - 7","8 - 14","15 - 21","22 - 28",null,"6 - 12","13 - 19","20 - 26",null,"3 - 9","10 - 16","17 - 23","24 - 30","1 - 7","8 - 14","15 - 21","22 - 28",null,"5 - 11","12 - 18","19 - 25",null,"2 - 8","9 - 15","16 - 22",null,"2 - 8","9 - 15","16 - 22","23 - 29",null,"6 - 12","13 - 19","20 - 26",null,"4 - 10","11 - 17","18 - 24","25 - 31","1 - 7","8 - 14","15 - 21","22 - 28",null,"6 - 12","13 - 19","20 - 26",null,"3 - 9","10 - 16","17 - 23","24 - 31"]
[null,"1","2","3","4","5","6","7","8","9","10","11","12","13","14","15","16","17","18","19","20","21","22","23","24","25","26","27","28","29","30","31","32","33","34","35","36","37","38","39","40","41","42","43","44","45","46","47","48","49","50","51","52"]
[]
["0"]
[]
[]
["I"]
[]
[]
["II"]
[]
[]
["III"]
[]
[]
["IV"]
[]
[]
["V"]
[]
[]
["VI"]
[]
[]
["VII"]
[]
[]
["VIII"]
[]
[]
["IX"]
[]
[]
["X"]
[]
[]
["XI"]
[]
[]
[]
["I",null,null,null,null,null,null,null,null,null,null,null,null,null,null,null,null,null,"К","К",null,null,null,null,null,null,null,null,null,null,null,null,null,null,null,null,"У","У","У","У","П","П","П","А","К","К","К","К","К","К","К","К","К"]
[]
[]
[]
[]
[]
[]
["II",null,null,null,null,null,null,null,null,null,null,null,null,null,"У","У","У","У","К","К",null,null,null,null,null,null,null,null,null,null,null,null,null,null,null,"У","У","П","П","П","П","А","А","Г","*","*","*","*","*","*","*","*","*"]
[]
[]
[]
[]
[]
[]
["III","*","*","*","*","*","*","*","*","*","*","*","*","*","*","*","*","*","*","*","*","*","*","*","*","*","*","*","*","*","*","*","*","*","*","*","*","*","*","*","*","*","*","*","*","*","*","*","*","*","*","*","*"]
[]
[]
[]
[]
[]
[]
["IV","*","*","*","*","*","*","*","*","*","*","*","*","*","*","*","*","*","*","*","*","*","*","*","*","*","*","*","*","*","*","*","*","*","*","*","*","*","*","*","*","*","*","*","*","*","*","*","*","*","*","*","*"]
[]
[]
[]
[]
[]
[]
["V","*","*","*","*","*","*","*","*","*","*","*","*","*","*","*","*","*","*","*","*","*","*","*","*","*","*","*","*","*","*","*","*","*","*","*","*","*","*","*","*","*","*","*","*","*","*","*","*","*","*","*","*"]
[]
[]
[]
[]
[]
[]
["VI"]
[]
[]
[]
[]
[]
[]
["VII"]
[]
[]
[]
[]
[]
[]
["VIII"]
[]
[]
[]
[]
[]
[]
["IX"]
[]
[]
[]
[]
[]
[]
["X"]
[]
[]
[]
[]
[]
[]
["XI"]
[]
[]
[]
[]
[]
[]
["Обозначения:",null,null,null,null,null,null,"  Обучение по циклам",null,null,null,null,null,null,null,null,null,null,null,null,null,null,null,null,"У","   Учебная практика"]
[]
[null,null,null,null,null,null,"А","   Промежуточная аттестация",null,null,null,null,null,null,null,null,null,null,null,null,null,null,null,null,"П","   Производственная практика",null,null,null,null,null,null,null,null,null,null,null,null,null,null,null,null,null,"Г","   Государственная итоговая аттестация"]
[]
[null,null,null,null,null,null,"К","   Каникулы",null,null,null,null,null,null,null,null,null,null,null,null,null,null,null,null,null,null,null,null,null,null,null,null,null,null,null,null,null,null,null,null,null,null,null,"*","   Неделя отсутствует"]
[]
["2 Сводные данные по бюджету времени"]
[]
["Курс","Обучение по дисциплинам и междисциплинарным курсам",null,null,null,null,null,null,null,null,null,null,null,null,null,null,null,null,null,"Промежуточная аттестация",null,null,null,null,null,null,null,null,"Практики",null,null,null,null,null,null,null,null,null,null,null,null,null,null,null,null,null,null,null,null,"ГИА",null,null,null,null,null,"Каникулы",null,null,"Всего",null,null,"Студентов",null,null,null,"Групп"]
[null,null,null,null,null,null,null,null,null,null,null,null,null,null,null,null,null,null,null,null,null,null,null,null,null,null,null,null,"Учебная практика",null,null,null,null,null,null,"Производственная практика (по профилю специальности)",null,null,null,null,null,null,"Производственная практика (преддипломная)",null,null,null,null,null,null,"Подго-\r\nтовка",null,null,"Прове-\r\nдение"]
[null,"Всего",null,null,null,null,null,"1 сем",null,null,null,null,null,"2 сем",null,null,null,null,null,"Всего",null,null,"1 сем",null,null,"2 сем",null,null,"Всего",null,null,"1 сем",null,"2 сем",null,"Всего",null,null,"1 сем",null,"2 сем",null,"Всего",null,null,"1 сем",null,"2 сем"]
[null,"нед.",null,null,"час. обяз. уч. занятий",null,null,"нед.",null,null,"час. обяз. уч. занятий",null,null,"нед.",null,null,"час. обяз. уч. занятий",null,null,"нед.",null,null,"нед.",null,null,"нед.",null,null,"нед.",null,null,"нед.",null,"нед.",null,"нед.",null,null,"нед.",null,"нед.",null,"нед.",null,null,"нед.",null,"нед.",null,"нед.",null,null,"нед.",null,null,"нед.",null,null,"нед."]
["I"]
["II"]
["III"]
["IV"]
["V"]
["VI"]
["VII"]
["VIII"]
["IX"]
["X"]
["XI"]
["Всего"]
[]
["Курс","Обучение по дисциплинам и междисциплинарным курсам, в том числе учебная практика",null,null,null,null,null,null,null,null,null,null,null,null,null,null,null,null,null,"Промежуточная аттестация",null,null,null,null,null,null,null,null,"Практики",null,null,null,null,null,null,null,null,null,null,null,null,null,"ГИА",null,null,null,null,null,"Каникулы",null,null,"Всего",null,null,"Студентов",null,null,null,"Групп"]
[null,null,null,null,null,null,null,null,null,null,null,null,null,null,null,null,null,null,null,null,null,null,null,null,null,null,null,null,"Производственная практика (по профилю специальности)",null,null,null,null,null,null,"Производственная практика (преддипломная)",null,null,null,null,null,null,"Подго-\r\nтовка",null,null,"Прове-\r\nдение"]
[null,"Всего",null,null,null,null,null,"1 сем",null,null,null,null,null,"2 сем",null,null,null,null,null,"Всего",null,null,"1 сем",null,null,"2 сем",null,null,"Всего",null,null,"1 сем",null,"2 сем",null,"Всего",null,null,"1 сем",null,"2 сем"]
[null,"нед.",null,null,"час. обяз. уч. занятий",null,null,"нед.",null,null,"час. обяз. уч. занятий",null,null,"нед.",null,null,"час. обяз. уч. занятий",null,null,"нед.",null,null,"нед.",null,null,"нед.",null,null,"нед.",null,null,"нед.",null,"нед.",null,"нед.",null,null,"нед.",null,"нед.",null,"нед.",null,null,"нед.",null,null,"нед.",null,null,"нед."]
["I"]
["II"]
["III"]
["IV"]
["V"]
["VI"]
["VII"]
["VIII"]
["IX"]
["X"]
["XI"]
["Всего"]
[]
["Курс","  Обучение по циклам",null,null,null,null,null,null,null,null,null,null,null,null,null,null,null,null,null,"Промежуточная аттестация",null,null,null,null,null,null,null,null,"Практики",null,null,null,null,null,null,null,null,null,null,null,null,null,"ГИА",null,null,"Каникулы",null,null,"Всего",null,null,"Студентов",null,null,null,"Групп"]
[null,null,null,null,null,null,null,null,null,null,null,null,null,null,null,null,null,null,null,null,null,null,null,null,null,null,null,null,"Учебная практика (Производственное обучение)",null,null,null,null,null,null,"Производственная практика",null,null,null,null,null,null,"Прове-\r\nдение"]
[null,"Всего",null,null,null,null,null,"1 сем",null,null,null,null,null,"2 сем",null,null,null,null,null,"Всего",null,null,"1 сем",null,null,"2 сем",null,null,"Всего",null,null,"1 сем",null,"2 сем",null,"Всего",null,null,"1 сем",null,"2 сем"]
[null,"нед.",null,null,null,null,null,"нед.",null,null,null,null,null,"нед.",null,null,null,null,null,"нед.",null,null,"нед.",null,null,"нед.",null,null,"нед.",null,null,"нед.",null,"нед.",null,"нед.",null,null,"нед.",null,"нед.",null,"нед.",null,null,"нед.",null,null,"нед."]
["I","33 ",null,null,null,null,null,"17 ",null,null,null,null,null,"16 ",null,null,null,null,null,"1 ",null,null,null,null,null,"1 ",null,null,"3 ",null,null,null,null,4,null,3,null,null,null,null,3,null,null,null,null,"11 ",null,null,"52 "]
["II","28 ",null,null,null,null,null,"13 ",null,null,null,null,null,"15 ",null,null,null,null,null,"2 ",null,null,null,null,null,"2 ",null,null,"6 ",null,null,"4 ",null,"2 ",null,"4 ",null,null,null,null,"4 ",null,"1 ",null,null,"2 ",null,null,"43 "]
["III"]
["IV"]
["V"]
["Всего","61 ",null,null,null,null,null,"30 ",null,null,null,null,null,"31 ",null,null,null,null,null,"3 ",null,null,null,null,null,"3 ",null,null,10,null,null,"4 ",null,6,null,7,null,null,null,null,7,null,"1 ",null,null,"13 ",null,null,"95 "]
[]
["Курс","Обучение по циклам и разделу \"Физическая культура\", в том числе учебная практика ",null,null,null,null,null,null,null,null,null,null,null,null,null,null,null,null,null,"Промежуточная аттестация",null,null,null,null,null,null,null,null,"Практики",null,null,null,null,null,null,"ГИА",null,null,"Каникулы",null,null,"Всего",null,null,"Студентов",null,null,null,"Групп"]
[null,null,null,null,null,null,null,null,null,null,null,null,null,null,null,null,null,null,null,null,null,null,null,null,null,null,null,null,"Производственная практика",null,null,null,null,null,null,"Прове-\r\nдение"]
[null,"Всего",null,null,null,null,null,"1 сем",null,null,null,null,null,"2 сем",null,null,null,null,null,"Всего",null,null,"1 сем",null,null,"2 сем",null,null,"Всего",null,null,"1 сем",null,"2 сем"]
[null,"нед.",null,null,"час. обяз. уч. зан.",null,null,"нед.",null,null,"час. обяз. уч. зан.",null,null,"нед.",null,null,"час. обяз. уч. зан.",null,null,"нед.",null,null,"нед.",null,null,"нед.",null,null,"нед.",null,null,"нед.",null,"нед.",null,"нед.",null,null,"нед.",null,null,"нед."]
["I"]
["II"]
["III"]
["IV"]
["V"]
["Всего"]

{"sheet":"План","index":2,"n_rows":126,"n_cols":72,"rows_kept":126,"cut":false,"hidden":false,"merged":[[121,69,125,71],[122,2,122,20],[122,21,122,32],[122,33,122,44],[122,45,122,56],[122,57,122,68],[123,2,123,20],[123,21,123,32],[123,33,123,44],[123,45,123,56],[124,45,124,56],[124,57,124,68],[125,2,125,20],[125,21,125,32],[125,33,125,44],[125,45,125,56],[125,57,125,68],[117,2,117,8],[117,9,117,20],[117,21,117,32],[117,33,117,44],[117,45,117,56],[117,57,117,68],[121,1,125,1],[121,2,121,20],[121,21,121,32],[121,33,121,44],[121,45,121,56],[121,57,121,68],[123,57,123,68],[124,2,124,20],[124,21,124,32],[124,33,124,44],[114,2,114,8],[114,9,114,20],[114,21,114,32],[114,33,114,44],[114,45,114,56],[114,57,114,68],[116,2,116,8],[116,9,116,20],[116,21,116,32],[116,33,116,44],[116,45,116,56],[116,57,116,68],[111,3,111,7],[111,15,111,20],[111,28,111,32],[111,40,111,44],[111,52,111,56],[111,64,111,68],[113,2,113,8],[113,9,113,20],[113,21,113,32],[113,33,113,44],[113,45,113,56],[113,57,113,68],[109,3,109,7],[109,15,109,20],[109,28,109,32],[109,40,109,44],[109,52,109,56],[109,64,109,68],[110,3,110,7],[110,15,110,20],[110,28,110,32],[110,40,110,44],[110,52,110,56],[110,64,110,68],[106,3,106,7],[106,15,106,20],[106,27,106,32],[106,39,106,44],[106,51,106,56],[106,63,106,68],[107,3,107,7],[107,15,107,20],[107,27,107,32],[107,39,107,44],[107,51,107,56],[107,63,107,68],[103,3,103,7],[103,15,103,20],[103,27,103,32],[103,39,103,44],[103,51,103,56],[103,63,103,68],[105,3,105,7],[105,15,105,20],[105,27,105,32],[105,39,105,44],[105,51,105,56],[105,63,105,68],[101,3,101,7],[101,15,101,20],[101,27,101,32],[101,39,101,44],[101,51,101,56],[101,63,101,68],[102,3,102,7],[102,15,102,20],[102,27,102,32],[102,39,102,44],[102,51,102,56],[102,63,102,68],[91,15,91,20],[91,28,91,32],[91,40,91,44],[91,52,91,56],[91,64,91,68],[99,3,99,7],[99,15,99,20],[99,27,99,32],[99,39,99,44],[99,51,99,56],[99,63,99,68],[74,15,74,20],[74,28,74,32],[74,40,74,44],[74,52,74,56],[74,64,74,68],[77,15,77,20],[77,28,77,32],[77,40,77,44],[77,52,77,56],[77,64,77,68],[60,15,60,20],[60,28,60,32],[60,40,60,44],[60,52,60,56],[60,64,60,68],[63,15,63,20],[63,28,63,32],[63,40,63,44],[63,52,63,56],[63,64,63,68],[4,57,5,57],[4,59,5,59],[0,69,5,69],[2,19,5,19],[2,20,5,20],[2,21,2,32],[46,15,46,20],[46,28,46,32],[46,40,46,44],[46,52,46,56],[46,64,46,68],[4,47,5,47],[0,70,3,71],[1,21,1,44],[1,45,1,68],[2,57,2,68],[4,58,5,58],[4,71,5,71],[8,2,8,20],[43,15,43,20],[43,28,43,32],[43,40,43,44],[43,52,43,56],[43,64,43,68],[4,60,5,60],[4,61,5,61],[4,62,4,66],[4,48,5,48],[4,67,5,67],[4,68,5,68],[4,70,5,70],[4,49,5,49],[4,50,4,54],[4,55,5,55],[4,56,5,56],[2,6,5,6],[2,7,5,7],[2,8,5,8],[2,10,5,10],[2,33,2,44],[2,45,2,56],[4,26,4,30],[4,31,5,31],[4,32,5,32],[4,33,5,33],[4,35,5,35],[4,36,5,36],[4,37,5,37],[3,13,5,13],[3,14,3,18],[3,21,3,32],[3,33,3,44],[4,34,5,34],[4,46,5,46],[4,22,5,22],[4,38,4,42],[4,43,5,43],[4,44,5,44],[4,45,5,45],[0,0,5,0],[0,1,5,1],[0,2,5,2],[0,3,1,8],[0,9,1,20],[0,21,0,68],[2,9,5,9],[2,11,5,11],[2,12,5,12],[2,13,2,18],[3,45,3,56],[3,57,3,68],[4,14,5,14],[4,15,5,15],[4,16,5,16],[4,17,5,17],[4,18,5,18],[4,21,5,21],[4,23,5,23],[4,24,5,24],[4,25,5,25],[2,3,5,3],[2,4,5,4],[2,5,5,5]]}
[null,"Индекс","Наименование циклов, разделов,\r\nдисциплин, профессиональных модулей, МДК, практик","Формы промежуточной аттестации",null,null,null,null,null,"Учебная нагрузка обучающихся, ч.",null,null,null,null,null,null,null,null,null,null,null,"Распределение по курсам и семестрам",null,null,null,null,null,null,null,null,null,null,null,null,null,null,null,null,null,null,null,null,null,null,null,null,null,null,null,null,null,null,null,null,null,null,null,null,null,null,null,null,null,null,null,null,null,null,null,"ЦК","Максимальная учебная нагрузка"]
[null,null,null,null,null,null,null,null,null,null,null,null,null,null,null,null,null,null,null,null,null,"Курс 1",null,null,null,null,null,null,null,null,null,null,null,null,null,null,null,null,null,null,null,null,null,null,null,"Курс 2"]
[null,null,null,"Экзамены","Зачеты","Диффер. зачеты","Курсовые проекты","Курсовые работы","Другие","Максимальная","в т.ч. в форме практ. подготовки","Самост.(с.р.+и.п.)","Консультации","Обязательная",null,null,null,null,null,"Промежут. аттестация","Индивид. проект (входит в с.р.)","Семестр 1",null,null,null,null,null,null,null,null,null,null,null,"Семестр 2",null,null,null,null,null,null,null,null,null,null,null,"Семестр 3",null,null,null,null,null,null,null,null,null,null,null,"Семестр 4"]
[null,null,null,null,null,null,null,null,null,null,null,null,null,"Всего","в том числе",null,null,null,null,null,null,"17  нед",null,null,null,null,null,null,null,null,null,null,null,"16  (7 ) нед",null,null,null,null,null,null,null,null,null,null,null,"13  (4 ) нед",null,null,null,null,null,null,null,null,null,null,null,"15  (6 ) нед"]
[null,null,null,null,null,null,null,null,null,null,null,null,null,null,"Лекции, уроки","Пр. занятия","Лаб. занятия","Cеминар. занятия","Индивид. занятия",null,null,"Максим.","в т.ч. в форме практ. подготовки","Самост.","Консульт.","Обязательная","в том числе",null,null,null,null,"Промежут. аттестация","Индивид. проект","Максим.","в т.ч. в форме практ. подготовки","Самост.","Консульт.","Обязательная","в том числе",null,null,null,null,"Промежут. аттестация","Индивид. проект","Максим.","в т.ч. в форме практ. подготовки","Самост.","Консульт.","Обязательная","в том числе",null,null,null,null,"Промежут. аттестация","Индивид. проект","Максим.","в т.ч. в форме практ. подготовки","Самост.","Консульт.","Обязательная","в том числе",null,null,null,null,"Промежут. аттестация","Индивид. проект",null,"Обяз. часть","Вар. часть"]
[null,null,null,null,null,null,null,null,null,null,null,null,null,null,null,null,null,null,null,null,null,null,null,null,null,null,"Лекции, уроки","Пр.занятия","Лаб. занятия","Семинар. занятия","Индивид. занятия",null,null,null,null,null,null,null,"Лекции, уроки","Пр.занятия","Лаб. занятия","Семинар. занятия","Индивид. занятия",null,null,null,null,null,null,null,"Лекции, уроки","Пр.занятия","Лаб. занятия","Семинар. занятия","Индивид. занятия",null,null,null,null,null,null,null,"Лекции, уроки","Пр.занятия","Лаб. занятия","Семинар. занятия","Индивид. занятия"]
[null,"1","2","3","4","5","6","7","8","9","10","11","12","13","14","15","16","17","18","19","20","21","22","23","24","25","26","27","28","29","30","31","32","33","34","35","36","37","38","39","40","41","42","43","44",null,"46","47","48","49","50","51","52","53","54","55","56","57","58","59","60","61","62","63","64","65","66","67","68","69","70","71"]
[1]
[2,null,"Итого час/нед (с учетом консультаций в период обучения по циклам)",null,null,null,null,null,null,null,null,null,null,null,null,null,null,null,null,null,null,"36",null,null,null,"36",null,null,null,null,null,null,null,"36",null,null,null,"36",null,null,null,null,null,null,null,"36",null,null,null,"36",null,null,null,null,null,null,null,"36",null,null,null,"36"]
[3,"ОД","ОБЩЕОБРАЗОВАТЕЛЬНЫЙ ЦИКЛ"]
[4]
[5,"ОДБ","Базовые дисциплины"]
[6,"*"]
[7]
[8,"ОДП","Профильные дисциплины"]
[9,"*"]
[10]
[11,"ПОО","Предлагаемые ОО"]
[12,"*"]
[13]
[14,null,null,null,null,null,null,null,null,null,null,null,null,null,null,null,null,null,null,null,null,null,null,null,null,null,null,null,null,null,null,null,null,null,null,null,null,null,null,null,null,null,null,null,null,null,null,null,null,null,null,null,null,null,null,null,null,null,null,null,null,null,null,null,null,null,null,null,null,null,"79,01%","20,99%"]
[15,"ПП","Профессиональная подготовка","5",null,"28",null,null,null,"2916",{"$f":"SUM(K24,K36)","v":2045},"26","52","2808","763",1433,null,null,null,"30",null,"612",{"$f":"SUM(W24,W36)","v":358},null,null,"612","254","358",null,null,null,null,null,"864",{"$f":"SUM(AI24,AI36)","v":646},null,"24","828","182","394",null,null,null,"12",null,"612",{"$f":"SUM(AU24,AU36)","v":451},null,null,"612","161","307",null,null,null,null,null,"828",{"$f":"SUM(BG36,BG24)","v":590},"26","28","756","166","374",null,null,null,"18",null,null,"2304","612"]
[16]
[17,"ОП","Общепрофессиональный цикл","1",null,"14",null,null,null,"578",{"$f":"SUM(K25:K33)","v":382},"6","6","560","178",382,null,null,null,"6",null,"332",{"$f":"SUM(W25:W33)","v":190},null,null,"332",142,190,null,null,null,null,null,"108",{"$f":"SUM(AI25:AI33)","v":108},null,null,"108",null,108,null,null,null,null,null,"84",{"$f":"SUM(AU25:AU33)","v":48},null,null,"84","36",48,null,null,null,null,null,"54",{"$f":"SUM(BG25:BG33)","v":36},"6","6","36",null,36,null,null,null,"6",null,null,"342","236"]
[18,"ОП.01","Основы материаловедения",null,null,"1",null,null,null,"54",{"$f":"SUM(P25,Q25)","v":20},null,null,"54","34",20,null,null,null,null,null,"54",{"$f":"SUM(AB25,AC25)","v":20},null,null,"54",34,20,null,null,null,null,null,null,{"$f":"SUM(AN25,AO25)","v":0},null,null,null,null,null,null,null,null,null,null,null,{"$f":"SUM(AZ25,BA25)","v":0},null,null,null,null,null,null,null,null,null,null,null,{"$f":"SUM(BM25,BL25)","v":0},null,null,null,null,null,null,null,null,null,null,null,"54"]
[19,"ОП.02","Безопасность жизнедеятельности",null,null,"3",null,null,null,"52",{"$f":"SUM(P26,Q26)","v":16},null,null,"52","36",16,null,null,null,null,null,null,{"$f":"SUM(AB26,AC26)","v":0},null,null,null,null,null,null,null,null,null,null,null,{"$f":"SUM(AN26,AO26)","v":0},null,null,null,null,null,null,null,null,null,null,"52",{"$f":"SUM(AZ26,BA26)","v":16},null,null,"52",36,16,null,null,null,null,null,null,{"$f":"SUM(BM26,BL26)","v":0},null,null,null,null,null,null,null,null,null,null,null,"36","16"]
[20,"ОП.03","История дизайна",null,null,"1",null,null,null,"48",12,null,null,"48","36",12,null,null,null,null,null,"48",12,null,null,"48",36,12,null,null,null,null,null,null,0,null,null,null,null,null,null,null,null,null,null,null,0,null,null,null,null,null,null,null,null,null,null,null,0,null,null,null,null,null,null,null,null,null,null,null,"40","8"]
[21,"ОП.04","Основы дизайна и композиции",null,null,"1",null,null,null,"66",22,null,null,"66","44",22,null,null,null,null,null,"66",22,null,null,"66",44,22,null,null,null,null,null,null,0,null,null,null,null,null,null,null,null,null,null,null,0,null,null,null,null,null,null,null,null,null,null,null,0,null,null,null,null,null,null,null,null,null,null,null,"36","30"]
[22,"ОП.05","Основы экономической деятельности",null,null,"1",null,null,null,"44",18,null,null,"44","26",18,null,null,null,null,null,"44",18,null,null,"44",26,18,null,null,null,null,null,null,0,null,null,null,null,null,null,null,null,null,null,null,0,null,null,null,null,null,null,null,null,null,null,null,0,null,null,null,null,null,null,null,null,null,null,null,"36","8"]
[23,"ОП.06","Иностранный язык в профессиональной деятельности","4",null,"2",null,null,null,"118",100,"6","6","100",null,100,null,null,null,"6",null,"34",34,null,null,"34",null,34,null,null,null,null,null,"20",20,null,null,"20",null,20,null,null,null,null,null,"20",20,null,null,"20",null,20,null,null,null,null,null,"44",26,"6","6","26",null,26,null,null,null,6,null,null,"100","18"]
[24,"ОП.07","Физическая культура",null,null,"1-4",null,null,null,"56",54,null,null,"56","2",54,null,null,null,null,null,"18",16,null,null,"18",2,16,null,null,null,null,null,"16",16,null,null,"16",null,16,null,null,null,null,null,"12",12,null,null,"12",null,12,null,null,null,null,null,"10",10,null,null,"10",null,10,null,null,null,null,null,null,"40","16"]
[25,"ОП.08","Рисунок с основами перспективы",null,null,"12",null,null,null,"70",70,null,null,"70",null,70,null,null,null,null,null,"34",34,null,null,"34",null,34,null,null,null,null,null,"36",36,null,null,"36",null,36,null,null,null,null,null,null,0,null,null,null,null,null,null,null,null,null,null,null,0,null,null,null,null,null,null,null,null,null,null,null,null,"70"]
[26,"ОП.09","Живопись с основами цветоведения",null,null,"12",null,null,null,"70",70,null,null,"70",null,70,null,null,null,null,null,"34",{"$f":"SUM(AB33,AC33)","v":34},null,null,"34",null,34,null,null,null,null,null,"36",36,null,null,"36",null,36,null,null,null,null,null,null,0,null,null,null,null,null,null,null,null,null,null,null,0,null,null,null,null,null,null,null,null,null,null,null,null,"70"]
[27,"*"]
[28]
[29,"ПЦ","Профессиональный цикл","4",null,"14",null,null,null,"2338",{"$f":"SUM(K38,K53,K70,K84)","v":1663},"20","46","2248","585","1051",null,null,null,"24",null,"280",{"$f":"SUM(W38,W53,W70,W84)","v":168},null,null,"280","112","168",null,null,null,null,null,"756",{"$f":"SUM(AI38,AI53,AI70,AI84)","v":538},null,"24","720","182","286",null,null,null,"12",null,"528",{"$f":"SUM(AU38,AU53,AU70,AU84)","v":403},null,null,"528","125",259,null,null,null,null,null,"774",{"$f":"SUM(BG38,BG53,BG70,BG84)","v":554},"20","22","720","166",338,null,null,null,"12",null,null,"1962","376"]
[30]
[31,"ПМ.01","Разработка технического задания на продукт графического дизайна","1",null,"3",null,null,null,468,{"$f":"SUM(P40,Q40,P41,Q41,N44,N47)","v":302},null,"12",450,"148",158,null,null,null,"6",null,"144",{"$f":"SUM(AB40,AC40,AB41,AC41,Z44,Z47)","v":72},null,null,"144",72,72,null,null,null,null,null,"360",{"$f":"SUM(AN40,AO40,AN41,AO41,AL44,AL47)","v":230},null,"12",306,"76",86,null,null,null,"6",null,null,{"$f":"SUM(AZ40,BA40,AZ41,BA41,AX44,AX47)","v":0},null,null,null,null,null,null,null,null,null,null,null,{"$f":"SUM(BL40,BM40,BL41,BM41,BJ44,BJ47)","v":0},null,null,null,null,null,null,null,null,null,null,null,"471","33"]
[32]
[33,"МДК.01.01","Дизайн - проектирование",null,null,"2",null,null,null,"158",null,null,"6","152","74",78,null,null,null,null,null,"64",null,null,null,"64",32,32,null,null,null,null,null,"94",null,null,"6","88",42,46,null,null,null,null,null,null,null,null,null,null,null,null,null,null,null,null,null,null,null,null,null,null,null,null,null,null,null,null,null,null,"134","24"]
[34,"МДК.01.02","Проектная графика",null,null,"2",null,null,null,"160",null,null,"6","154","74",80,null,null,null,null,null,"80",null,null,null,"80",40,40,null,null,null,null,null,"80",null,null,"6","74",34,40,null,null,null,null,null,null,null,null,null,null,null,null,null,null,null,null,null,null,null,null,null,null,null,null,null,null,null,null,null,null,"151","9"]
[35,"МДК*"]
[36]
[37,"УП.01.01","Учебная практика",null,null,"2","РП",null,"час","108",null,null,null,108,"нед","3 ",null,null,null,null,null,"час",null,null,null,null,"нед",null,null,null,null,null,null,"час",null,null,null,108,"нед","3",null,null,null,null,null,"час",null,null,null,null,"нед",null,null,null,null,null,null,"час",null,null,null,null,"нед",null,null,null,null,null,null,null,"108"]
[38,"УП*"]
[39]
[40,"ПП.01.01","Производственная практика",null,null,null,"РП",null,"час",36,null,null,null,36,"нед",1,null,null,null,null,null,"час",null,null,null,null,"нед",null,null,null,null,null,null,"час",null,null,null,36,"нед",1,null,null,null,null,null,"час",null,null,null,null,"нед",null,null,null,null,null,null,"час",null,null,null,null,"нед",null,null,null,null,null,null,null,"72"]
[41,"ПП*"]
[42]
[43,"ПM.01.ЭК","Квалификационный экзамен","2",null,null,null,null,null,"6",null,null,null,null,null,null,null,null,null,"6",null,null,null,null,null,null,null,null,null,null,null,null,null,"6",null,null,null,null,null,null,null,null,null,"6",null,null,null,null,null,null,null,null,null,null,null,null,null,null,null,null,null,null,null,null,null,null,null,null,null,null,"6"]
[44,null,"Всего часов по МДК",null,null,null,null,null,null,"318",null,null,null,"306"]
[45]
[46,"ПМ.02","Создание графических дизайн –макетов","1",null,"6",null,null,null,1108,{"$f":"SUM(P55,Q55,P56,Q56,P57,Q57,P58,Q58,N61,N64)","v":791},"16","16",1070,"279",539,null,null,null,"6",null,null,{"$f":"SUM(AB55,AC55,AB56,AC56,AB57,AC57,AB58,AC58,Z61,Z64)","v":0},null,null,null,null,null,null,null,null,null,null,182,{"$f":"SUM(AN55,AO55,AN56,AO56,AN57,AO57,AN58,AO58,AL61,AL64)","v":128},null,null,182,"54",92,null,null,null,null,null,"322",{"$f":"SUM(AZ55,BA55,AZ56,BA56,AZ57,BA57,AZ58,BA58,AX61,AX64)","v":233},null,null,"322","89",161,null,null,null,null,null,"604",{"$f":"SUM(BL55,BM55,BL56,BM56,BL57,BM57,BL58,BM58,BJ61,BJ64)","v":430},"16","16","566","136",286,null,null,null,"6",null,null,"862","210"]
[47]
[48,"МДК.02.01","Фирменный стиль и корпоративный дизайн",null,null,"4",null,null,null,"238",null,"4","4","230","82",148,null,null,null,null,null,null,null,null,null,null,null,null,null,null,null,null,null,"38",null,null,null,"38",8,30,null,null,null,null,null,"66",null,null,null,"66",30,36,null,null,null,null,null,"134",null,"4","4","126",44,82,null,null,null,null,null,null,"152","86"]
[49,"МДК.02.02","Информационный дизайн и медиа",null,null,"4",null,null,null,"208",null,"4","4","200","70",130,null,null,null,null,null,null,null,null,null,null,null,null,null,null,null,null,null,"38",null,null,null,"38",14,24,null,null,null,null,null,"52",null,null,null,"52",18,34,null,null,null,null,null,"118",null,"4","4","110",38,72,null,null,null,null,null,null,"178","30"]
[50,"МДК.02.03","Многостраничный дизайн",null,null,"4",null,null,null,"188",null,"4","4","180","63",117,null,null,null,null,null,null,null,null,null,null,null,null,null,null,null,null,null,"36",null,null,null,"36",18,18,null,null,null,null,null,"50",null,null,null,"50",15,35,null,null,null,null,null,"102",null,"4","4","94",30,64,null,null,null,null,null,null,"142","46"]
[51,"МДК.02.04","Дизайн упаковки",null,null,"4",null,null,null,"216",null,"4","4","208","64",144,null,null,null,null,null,null,null,null,null,null,null,null,null,null,null,null,null,"34",null,null,null,"34",14,20,null,null,null,null,null,"82",null,null,null,"82",26,56,null,null,null,null,null,"100",null,"4","4","92",24,68,null,null,null,null,null,null,"168","48"]
[52,"МДК*"]
[53]
[54,"УП.02.01","Учебная практика",null,null,"3","РП",null,"час",144,null,null,null,144,"нед",4,null,null,null,null,null,"час",null,null,null,null,"нед",null,null,null,null,null,null,"час",null,null,null,36,"нед",1,null,null,null,null,null,"час",null,null,null,72,"нед","2",null,null,null,null,null,"час",null,null,null,36,"нед","1",null,null,null,null,null,null,"108"]
[55,"УП*"]
[56]
[57,"ПП.02.01","Производственная практика",null,null,"4","РП",null,"час","108",null,null,null,108,"нед","3 ",null,null,null,null,null,"час",null,null,null,null,"нед",null,null,null,null,null,null,"час",null,null,null,null,"нед",null,null,null,null,null,null,"час",null,null,null,null,"нед",null,null,null,null,null,null,"час",null,null,null,108,"нед","3",null,null,null,null,null,null,"108"]
[58,"ПП*"]
[59]
[60,"ПM.02.ЭК","Квалификационный экзамен","4",null,null,null,null,null,"6",null,null,null,null,null,null,null,null,null,"6",null,null,null,null,null,null,null,null,null,null,null,null,null,null,null,null,null,null,null,null,null,null,null,null,null,null,null,null,null,null,null,null,null,null,null,null,null,"6",null,null,null,null,null,null,null,null,null,"6",null,null,"6"]
[61,null,"Всего часов по МДК",null,null,null,null,null,null,"850",null,null,null,"818"]
[62]
[63,"ПМ.03","Подготовка  дизайн -  макета к печати (публикации)","1",null,"2",null,null,null,"376",{"$f":"SUM(P72,Q72,N75,N78)","v":294},"4","6","360","66",150,null,null,null,"6",null,null,{"$f":"SUM(AB72,AC72,Z75,Z78)","v":0},null,null,null,null,null,null,null,null,null,null,null,{"$f":"SUM(AN72,AO72,AL75,AL78)","v":0},null,null,null,null,null,null,null,null,null,null,"206",{"$f":"SUM(AZ72,BA72,AX75,AX78)","v":170},null,null,"206","36",98,null,null,null,null,null,"170",{"$f":"SUM(BL72,BM72,BJ75,BJ78)","v":124},"4","6","154","30",52,null,null,null,"6",null,null,"244","132"]
[64]
[65,"МДК.03.01","Финальная сборка дизайн - макетов и подготовка их к печати типографии, к публикации",null,null,"4",null,null,null,"226",null,"4","6","216","66",150,null,null,null,null,null,null,null,null,null,null,null,null,null,null,null,null,null,null,null,null,null,null,null,null,null,null,null,null,null,"134",null,null,null,"134",36,98,null,null,null,null,null,"92",null,"4","6","82",30,52,null,null,null,null,null,null,"202","24"]
[66,"МДК*"]
[67]
[68,"УП.03.01","Учебная практика",null,null,"4","РП",null,"час","108",null,null,null,108,"нед","3 ",null,null,null,null,null,"час",null,null,null,null,"нед",null,null,null,null,null,null,"час",null,null,null,null,"нед",null,null,null,null,null,null,"час",null,null,null,72,"нед","2",null,null,null,null,null,"час",null,null,null,36,"нед","1",null,null,null,null,null,null,"36","72"]
[69,"УП*"]
[70]
[71,"ПП.03.01","Производственная практика",null,null,null,"РП",null,"час","36",null,null,null,36,"нед","1 ",null,null,null,null,null,"час",null,null,null,null,"нед",null,null,null,null,null,null,"час",null,null,null,null,"нед",null,null,null,null,null,null,"час",null,null,null,null,"нед",null,null,null,null,null,null,"час",null,null,null,36,"нед","1",null,null,null,null,null,null,null,"36"]
[72,"ПП*"]
[73]
[74,"ПM.03.ЭК","Квалификационный экзамен","4",null,null,null,null,null,"6",null,null,null,null,null,null,null,null,null,"6",null,null,null,null,null,null,null,null,null,null,null,null,null,null,null,null,null,null,null,null,null,null,null,null,null,null,null,null,null,null,null,null,null,null,null,null,null,"6",null,null,null,null,null,null,null,null,null,"6",null,null,"6"]
[75,null,"Всего часов по МДК",null,null,null,null,null,null,"226",null,null,null,"216"]
[76]
[77,"ПМ.04","Организация личного профессионального развития и обучения на рабочем месте","1",null,"3",null,null,null,"386",{"$f":"SUM(P86,Q86,P87,Q87,N92)","v":276},null,"12","368","92",204,null,null,null,"6",null,"136",{"$f":"SUM(AB86,AC86,AB87,AC87,Z92)","v":96},null,null,"136","40",96,null,null,null,null,null,"250",{"$f":"SUM(AN86,AO86,AN87,AO87,AL92)","v":180},null,"12","232","52",108,null,null,null,"6",null,null,{"$f":"SUM(AZ86,BA86,AZ87,BA87,AX92)","v":0},null,null,null,null,null,null,null,null,null,null,null,{"$f":"SUM(BL86,BM86,BL87,BM87,BJ92)","v":0},null,null,null,null,null,null,null,null,null,null,null,"385","1"]
[78]
[79,"МДК.04.01","Основы менеджмента и планирование профессиональной деятельности",null,null,"2",null,null,null,"152",null,null,"6","146","46",100,null,null,null,null,null,"74",null,null,null,"74",20,54,null,null,null,null,null,"78",null,null,"6","72",26,46,null,null,null,null,null,null,null,null,null,null,null,null,null,null,null,null,null,null,null,null,null,null,null,null,null,null,null,null,null,null,"152"]
[80,"МДК.04.02","Психология и этика профессиональной деятельности",null,null,"2",null,null,null,"156",null,null,"6","150","46",104,null,null,null,null,null,"62",null,null,null,"62",20,42,null,null,null,null,null,"94",null,null,"6","88",26,62,null,null,null,null,null,null,null,null,null,null,null,null,null,null,null,null,null,null,null,null,null,null,null,null,null,null,null,null,null,null,"155","1"]
[81,"МДК*"]
[82]
[83,"УП*"]
[84]
[85,"ПП.04.01","Производственная практика",null,null,"2","РП",null,"час","72",null,null,null,72,"нед","2 ",null,null,null,null,null,"час",null,null,null,null,"нед",null,null,null,null,null,null,"час",null,null,null,72,"нед","2",null,null,null,null,null,"час",null,null,null,null,"нед",null,null,null,null,null,null,"час",null,null,null,null,"нед",null,null,null,null,null,null,null,"72"]
[86,"ПП*"]
[87]
[88,"ПM.04.ЭК","Квалификационный экзамен","2",null,null,null,null,null,"6",null,null,null,null,null,null,null,null,null,"6",null,null,null,null,null,null,null,null,null,null,null,null,null,"6",null,null,null,null,null,null,null,null,null,"6",null,null,null,null,null,null,null,null,null,null,null,null,null,null,null,null,null,null,null,null,null,null,null,null,null,null,"6"]
[89,null,"Всего часов по МДК",null,null,null,null,null,null,"308",null,null,null,"296"]
[90]
[91,"ПМ*"]
[92]
[93,null,"Учебная и производственная практики ",null,null,null,null,null,"час","612",null,null,null,612,"нед","17 ",null,null,null,null,null,"час",null,null,null,null,"нед",null,null,null,null,null,null,"час",null,null,null,"252","нед","7 ",null,null,null,null,null,"час",null,null,null,"144","нед","4 ",null,null,null,null,null,"час",null,null,null,"216","нед","6 "]
[94]
[95,null,"Учебная практика",null,null,null,null,null,"час",360,null,null,null,360,"нед",10,null,null,null,null,null,"час",null,null,null,null,"нед",null,null,null,null,null,null,"час",null,null,null,"108","нед",4,null,null,null,null,null,"час",null,null,null,"144","нед","4 ",null,null,null,null,null,"час",null,null,null,"72","нед","2 "]
[96,null,"    Концентрированная",null,null,null,null,null,"час",360,null,null,null,360,"нед",10,null,null,null,null,null,"час",null,null,null,null,"нед",null,null,null,null,null,null,"час",null,null,null,"108","нед",4,null,null,null,null,null,"час",null,null,null,"144","нед","4 ",null,null,null,null,null,"час",null,null,null,"72","нед","2 "]
[97,null,"    Рассредоточенная",null,null,null,null,null,"час",null,null,null,null,null,"нед",null,null,null,null,null,null,"час",null,null,null,null,"нед",null,null,null,null,null,null,"час",null,null,null,null,"нед",null,null,null,null,null,null,"час",null,null,null,null,"нед",null,null,null,null,null,null,"час",null,null,null,null,"нед"]
[98]
[99,null,"Производственная практика",null,null,null,null,null,"час",252,null,null,null,252,"нед",7,null,null,null,null,null,"час",null,null,null,null,"нед",null,null,null,null,null,null,"час",null,null,null,"144","нед",3,null,null,null,null,null,"час",null,null,null,null,"нед",null,null,null,null,null,null,"час",null,null,null,"144","нед","4 "]
[100,null,"    Концентрированная",null,null,null,null,null,"час",252,null,null,null,252,"нед",7,null,null,null,null,null,"час",null,null,null,null,"нед",null,null,null,null,null,null,"час",null,null,null,"144","нед",3,null,null,null,null,null,"час",null,null,null,null,"нед",null,null,null,null,null,null,"час",null,null,null,"144","нед","4 "]
[101,null,"    Рассредоточенная",null,null,null,null,null,"час",null,null,null,null,null,"нед",null,null,null,null,null,null,"час",null,null,null,null,"нед",null,null,null,null,null,null,"час",null,null,null,null,"нед",null,null,null,null,null,null,"час",null,null,null,null,"нед",null,null,null,null,null,null,"час",null,null,null,null,"нед"]
[102]
[103,null,"Государственная итоговая аттестация",null,null,null,null,null,"час","36",null,null,null,"36","нед","1 ",null,null,null,null,null,"час",null,null,null,null,"нед",null,null,null,null,null,null,"час",null,null,null,null,"нед",null,null,null,null,null,null,"час",null,null,null,null,"нед",null,null,null,null,null,null,"час",null,null,null,"36","нед","1"]
[104,null,null,null,null,null,null,null,"час",null,null,null,null,null,"нед",null,null,null,null,null,null,"час",null,null,null,null,"нед",null,null,null,null,null,null,"час",null,null,null,null,"нед",null,null,null,null,null,null,"час",null,null,null,null,"нед",null,null,null,null,null,null,"час",null,null,null,null,"нед"]
[105,null,"Защита выпускной квалификационной работы в виде демонстрационного экзамена",null,null,null,null,null,"час","36",null,null,null,"36","нед","1 ",null,null,null,null,null,"час",null,null,null,null,"нед",null,null,null,null,null,null,"час",null,null,null,null,"нед",null,null,null,null,null,null,"час",null,null,null,null,"нед",null,null,null,null,null,null,"час",null,null,null,"36","нед","1",null,null,null,null,null,null,"36"]
[106]
[107,null,"КОНСУЛЬТАЦИИ по О"]
[108,null,"          в т.ч. в период обучения по циклам"]
[109]
[110,null,"КОНСУЛЬТАЦИИ по ПП",null,null,null,null,null,null,"52",null,null,null,null,null,null,null,null,null,null,null,null,null,null,null,null,null,null,null,null,null,null,null,"24",null,null,null,null,null,null,null,null,null,null,null,null,null,null,null,null,null,null,null,null,null,null,null,"28"]
[111,null,"          в т.ч. в период обучения по циклам",null,null,null,null,null,null,"52",null,null,null,null,null,null,null,null,null,null,null,null,null,null,null,null,null,null,null,null,null,null,null,"24",null,null,null,null,null,null,null,null,null,null,null,null,null,null,null,null,null,null,null,null,null,null,null,"28"]
[112]
[113,null,"ОБЪЕМ ОБРАЗОВАТЕЛЬНОЙ ПРОГРАММЫ В АКАДЕМИЧЕСКИХ ЧАСАХ","5",null,"28",null,null,null,"2952",{"$f":"K22","v":2045},"26","52","2844","763","1433",null,null,null,"30",null,"612",{"$f":"W22","v":358},null,null,"612","254","358",null,null,null,null,null,"864",{"$f":"AI22","v":646},null,"24","828","182","394",null,null,null,"12",null,"612",{"$f":"AU22","v":451},null,null,"612","161","307",null,null,null,null,null,"864",{"$f":"BG22","v":590},"26","28","792","166","374",null,null,null,"18",null,null,"2340","612"]
[114]
[115,null,"Экзамены (без учета физ. культуры)",null,null,null,null,null,null,null,null,null,null,null,null,null,null,null,null,null,null,null,null,null,null,null,null,null,null,null,null,null,null,"2",null,null,null,null,null,null,null,null,null,null,null,null,null,null,null,null,null,null,null,null,null,null,null,"3"]
[116,null,"Зачеты (без учета физ. культуры)"]
[117,null,"Диффер. зачеты (без учета физ. культуры)",null,null,null,null,null,null,null,null,null,null,null,null,null,null,null,null,null,null,3,null,null,null,null,null,null,null,null,null,null,null,6,null,null,null,null,null,null,null,null,null,null,null,2,null,null,null,null,null,null,null,null,null,null,null,6]
[118,null,"Курсовые проекты (без учета физ. культуры)"]
[119,null,"Курсовые работы (без учета физ. культуры)"]

{"sheet":"Комплесные","index":3,"n_rows":24,"n_cols":8,"rows_kept":24,"cut":false,"hidden":false,"merged":[[21,1,24,1],[21,2,24,2],[21,3,24,3],[21,4,24,4],[13,1,16,1],[13,2,16,2],[13,3,16,3],[13,4,16,4],[17,1,20,1],[17,2,20,2],[17,3,20,3],[17,4,20,4],[5,1,8,1],[5,2,8,2],[5,3,8,3],[5,4,8,4],[9,1,12,1],[9,2,12,2],[9,3,12,3],[9,4,12,4],[0,6,0,7],[1,1,4,1],[1,2,4,2],[1,3,4,3],[1,4,4,4]]}
[null,"№","Вид контроля","Наименование комплексного вида контроля","Семестр",null,"[Семестр проведения комплексного вида контроля] Наименование дисциплины/МДК"]
[null,"1","Диф. зач","Комплексный диф. зачет","1","12","[1]","ОП.08 Рисунок с основами перспективы"]
[null,null,null,null,null,"12","[1]","ОП.09 Живопись с основами цветоведения"]
[]
[]
[null,"2","Диф. зач","Комплексный диф. зачет","2","12","[2]","ОП.08 Рисунок с основами перспективы"]
[null,null,null,null,null,"12","[2]","ОП.09 Живопись с основами цветоведения"]
[]
[]
[null,"3","Диф. зач","Комплексный диф. зачет","2","2","[2]","МДК.01.01 Дизайн - проектирование"]
[null,null,null,null,null,"2","[2]","МДК.01.02 Проектная графика"]
[]
[]
[null,"4","Диф. зач","Комплексный диф. зачет","4","4","[4]","МДК.03.01 Финальная сборка дизайн - макетов и подготовка их к печати типографии, к публикации"]
[null,null,null,null,null,"4","[4]","УП.03.01 Учебная практика"]
[]
[]
[null,"5","Диф. зач","Комплексный диф. зачет","2","2","[2]","МДК.04.01 Основы менеджмента и планирование профессиональной деятельности"]
[null,null,null,null,null,"2","[2]","МДК.04.02 Психология и этика профессиональной деятельности"]
[]
[]
[null,"6","Диф. зач","Комплексный диф. зачет","1","1","[1]","ОП.03 История дизайна"]
[null,null,null,null,null,"1","[1]","ОП.04 Основы дизайна и композиции"]
[null,null,null,null,null,"1","[1]","ОП.01 Основы материаловедения"]

{"sheet":"Компетенции","index":4,"n_rows":2107,"n_cols":5,"rows_kept":2107,"cut":false,"hidden":false,"merged":[[2026,0,2026,1],[1378,0,1378,1],[1459,0,1459,1],[1540,0,1540,1],[1621,0,1621,1],[1702,0,1702,1],[1783,0,1783,1],[1135,0,1135,1],[1216,0,1216,1],[1297,0,1297,1],[1864,0,1864,1],[1945,0,1945,1],[730,0,730,1],[811,0,811,1],[892,0,892,1],[973,0,973,1],[1054,0,1054,1],[325,0,325,1],[406,0,406,1],[487,0,487,1],[568,0,568,1],[649,0,649,1],[0,0,0,1],[1,0,1,1],[82,0,82,1],[163,0,163,1],[244,0,244,1]]}
["Индекс",null,null,null,"Содержание"]
["ОК 01.",null,null,1,"Выбирать способы решения задач профессиональной деятельности, применительно к различным контекстам."]
[null,null,null,2]
[null,null,null,3]
[null,null,null,4]
[null,null,null,5]
[null,null,null,6]
[null,null,null,7]
[null,null,null,8]
[null,null,null,9]
[null,null,null,10]
[null,null,null,11]
[null,null,null,12]
[null,null,null,13]
[null,null,null,14]
[null,null,null,15]
[null,null,null,16]
[null,null,null,17]
[null,null,null,18]
[null,null,null,19]
[null,null,null,20]
[null,null,null,21]
[null,null,null,22]
[null,null,null,23]
[null,null,null,24]
[null,null,null,25]
[null,null,null,26]
[null,null,null,27]
[null,null,null,28]
[null,null,null,29]
[null,null,null,30]
[null,null,null,31]
[null,null,null,32]
[null,null,null,33]
[null,null,null,34]
[null,null,null,35]
[null,null,null,36]
[null,null,null,37]
[null,null,null,38]
[null,null,null,39]
[null,null,null,40]
[null,null,null,41]
[null,null,null,42]
[null,null,null,43]
[null,null,null,44]
[null,null,null,45]
[null,null,null,46]
[null,null,null,47]
[null,null,null,48]
[null,null,null,49]
[null,null,null,50]
[null,null,null,51]
[null,null,null,52]
[null,null,null,53]
[null,null,null,54]
[null,null,null,55]
[null,null,null,56]
[null,null,null,57]
[null,null,null,58]
[null,null,null,59]
[null,null,null,60]
[null,null,null,61]
[null,null,null,62]
[null,null,null,63]
[null,null,null,64]
[null,null,null,65]
[null,null,null,66]
[null,null,null,67]
[null,null,null,68]
[null,null,null,69]
[null,null,null,70]
[null,null,null,71]
[null,null,null,72]
[null,null,null,73]
[null,null,null,74]
[null,null,null,75]
[null,null,null,76]
[null,null,null,77]
[null,null,null,78]
[null,null,null,79]
[null,null,null,80]
[null,null,null,81]
["ОК 02.",null,null,1,"Осуществлять поиск, анализ и интерпретацию информации, необходимой для выполнения задач профессиональной деятельности."]
[null,null,null,2]
[null,null,null,3]
[null,null,null,4]
[null,null,null,5]
[null,null,null,6]
[null,null,null,7]
[null,null,null,8]
[null,null,null,9]
[null,null,null,10]
[null,null,null,11]
[null,null,null,12]
[null,null,null,13]
[null,null,null,14]
[null,null,null,15]
[null,null,null,16]
[null,null,null,17]
[null,null,null,18]
[null,null,null,19]
[null,null,null,20]
[null,null,null,21]
[null,null,null,22]
[null,null,null,23]
[null,null,null,24]
[null,null,null,25]
[null,null,null,26]
[null,null,null,27]
[null,null,null,28]
[null,null,null,29]
[null,null,null,30]
[null,null,null,31]
[null,null,null,32]
[null,null,null,33]
[null,null,null,34]
[null,null,null,35]
[null,null,null,36]
[null,null,null,37]
[null,null,null,38]
[null,null,null,39]
[null,null,null,40]
[null,null,null,41]
[null,null,null,42]
[null,null,null,43]
[null,null,null,44]
[null,null,null,45]
[null,null,null,46]
[null,null,null,47]
[null,null,null,48]
[null,null,null,49]
[null,null,null,50]
[null,null,null,51]
[null,null,null,52]
[null,null,null,53]
[null,null,null,54]
[null,null,null,55]
[null,null,null,56]
[null,null,null,57]
[null,null,null,58]
[null,null,null,59]
[null,null,null,60]
[null,null,null,61]
[null,null,null,62]
[null,null,null,63]
[null,null,null,64]
[null,null,null,65]
[null,null,null,66]
[null,null,null,67]
[null,null,null,68]
[null,null,null,69]
[null,null,null,70]
[null,null,null,71]
[null,null,null,72]
[null,null,null,73]
[null,null,null,74]
[null,null,null,75]
[null,null,null,76]
[null,null,null,77]
[null,null,null,78]
[null,null,null,79]
[null,null,null,80]
[null,null,null,81]
["ОК 03.",null,null,1,"Планировать и реализовывать собственное профессиональное и личностное развитие."]
[null,null,null,2]
[null,null,null,3]
[null,null,null,4]
[null,null,null,5]
[null,null,null,6]
[null,null,null,7]
[null,null,null,8]
[null,null,null,9]
[null,null,null,10]
[null,null,null,11]
[null,null,null,12]
[null,null,null,13]
[null,null,null,14]
[null,null,null,15]
[null,null,null,16]
[null,null,null,17]
[null,null,null,18]
[null,null,null,19]
[null,null,null,20]
[null,null,null,21]
[null,null,null,22]
[null,null,null,23]
[null,null,null,24]
[null,null,null,25]
[null,null,null,26]
[null,null,null,27]
[null,null,null,28]
[null,null,null,29]
[null,null,null,30]
[null,null,null,31]
[null,null,null,32]
[null,null,null,33]
[null,null,null,34]
[null,null,null,35]
[null,null,null,36]
[null,null,null,37]
[null,null,null,38]
[null,null,null,39]
[null,null,null,40]
[null,null,null,41]
[null,null,null,42]
[null,null,null,43]
[null,null,null,44]
[null,null,null,45]
[null,null,null,46]
[null,null,null,47]
[null,null,null,48]
[null,null,null,49]
[null,null,null,50]
[null,null,null,51]
[null,null,null,52]
[null,null,null,53]
[null,null,null,54]
[null,null,null,55]
[null,null,null,56]
[null,null,null,57]
[null,null,null,58]
[null,null,null,59]
[null,null,null,60]
[null,null,null,61]
[null,null,null,62]
[null,null,null,63]
[null,null,null,64]
[null,null,null,65]
[null,null,null,66]
[null,null,null,67]
[null,null,null,68]
[null,null,null,69]
[null,null,null,70]
[null,null,null,71]
[null,null,null,72]
[null,null,null,73]
[null,null,null,74]
[null,null,null,75]
[null,null,null,76]
[null,null,null,77]
[null,null,null,78]
[null,null,null,79]
[null,null,null,80]
[null,null,null,81]
["ОК 04.",null,null,1,"Работать в коллективе и команде, эффективно взаимодействовать с коллегами, руководством, клиентами."]
[null,null,null,2]
[null,null,null,3]
[null,null,null,4]
[null,null,null,5]
[null,null,null,6]
[null,null,null,7]
[null,null,null,8]
[null,null,null,9]
[null,null,null,10]
[null,null,null,11]
[null,null,null,12]
[null,null,null,13]
[null,null,null,14]
[null,null,null,15]
[null,null,null,16]
[null,null,null,17]
[null,null,null,18]
[null,null,null,19]
[null,null,null,20]
[null,null,null,21]
[null,null,null,22]
[null,null,null,23]
[null,null,null,24]
[null,null,null,25]
[null,null,null,26]
[null,null,null,27]
[null,null,null,28]
[null,null,null,29]
[null,null,null,30]
[null,null,null,31]
[null,null,null,32]
[null,null,null,33]
[null,null,null,34]
[null,null,null,35]
[null,null,null,36]
[null,null,null,37]
[null,null,null,38]
[null,null,null,39]
[null,null,null,40]
[null,null,null,41]
[null,null,null,42]
[null,null,null,43]
[null,null,null,44]
[null,null,null,45]
[null,null,null,46]
[null,null,null,47]
[null,null,null,48]
[null,null,null,49]
[null,null,null,50]
[null,null,null,51]
[null,null,null,52]
[null,null,null,53]
[null,null,null,54]
[null,null,null,55]
[null,null,null,56]
[null,null,null,57]
[null,null,null,58]
[null,null,null,59]
[null,null,null,60]
[null,null,null,61]
[null,null,null,62]
[null,null,null,63]
[null,null,null,64]
[null,null,null,65]
[null,null,null,66]
[null,null,null,67]
[null,null,null,68]
[null,null,null,69]
[null,null,null,70]
[null,null,null,71]
[null,null,null,72]
[null,null,null,73]
[null,null,null,74]
[null,null,null,75]
[null,null,null,76]
[null,null,null,77]
[null,null,null,78]
[null,null,null,79]
[null,null,null,80]
[null,null,null,81]
["ОК 05.",null,null,1,"Осуществлять устную и письменную коммуникацию на государственном языке с учетом особенностей социального и культурного контекста."]
[null,null,null,2]
[null,null,null,3]
[null,null,null,4]
[null,null,null,5]
[null,null,null,6]
[null,null,null,7]
[null,null,null,8]
[null,null,null,9]
[null,null,null,10]
[null,null,null,11]
[null,null,null,12]
[null,null,null,13]
[null,null,null,14]
[null,null,null,15]
[null,null,null,16]
[null,null,null,17]
[null,null,null,18]
[null,null,null,19]
[null,null,null,20]
[null,null,null,21]
[null,null,null,22]
[null,null,null,23]
[null,null,null,24]
[null,null,null,25]
[null,null,null,26]
[null,null,null,27]
[null,null,null,28]
[null,null,null,29]
[null,null,null,30]
[null,null,null,31]
[null,null,null,32]
[null,null,null,33]
[null,null,null,34]
[null,null,null,35]
[null,null,null,36]
[null,null,null,37]
[null,null,null,38]
[null,null,null,39]
[null,null,null,40]
[null,null,null,41]
[null,null,null,42]
[null,null,null,43]
[null,null,null,44]
[null,null,null,45]
[null,null,null,46]
[null,null,null,47]
[null,null,null,48]
[null,null,null,49]
[null,null,null,50]
[null,null,null,51]
[null,null,null,52]
[null,null,null,53]
[null,null,null,54]
[null,null,null,55]
[null,null,null,56]
[null,null,null,57]
[null,null,null,58]
[null,null,null,59]
[null,null,null,60]
[null,null,null,61]
[null,null,null,62]
[null,null,null,63]
[null,null,null,64]
[null,null,null,65]
[null,null,null,66]
[null,null,null,67]
[null,null,null,68]
[null,null,null,69]
[null,null,null,70]
[null,null,null,71]
[null,null,null,72]
[null,null,null,73]
[null,null,null,74]
[null,null,null,75]
[null,null,null,76]
[null,null,null,77]
[null,null,null,78]
[null,null,null,79]
[null,null,null,80]
[null,null,null,81]
["ОК 06.",null,null,1,"Проявлять гражданско - патриотическую позицию, демонстрировать осознанное поведение на основе традиционных общечеловеческих ценностей, применять стандарты антикоррупционного поведения."]
[null,null,null,2]
[null,null,null,3]
[null,null,null,4]
[null,null,null,5]
[null,null,null,6]
[null,null,null,7]
[null,null,null,8]
[null,null,null,9]
[null,null,null,10]
[null,null,null,11]
[null,null,null,12]
[null,null,null,13]
[null,null,null,14]
[null,null,null,15]
[null,null,null,16]
[null,null,null,17]
[null,null,null,18]
[null,null,null,19]
[null,null,null,20]
[null,null,null,21]
[null,null,null,22]
[null,null,null,23]
[null,null,null,24]
[null,null,null,25]
[null,null,null,26]
[null,null,null,27]
[null,null,null,28]
[null,null,null,29]
[null,null,null,30]
[null,null,null,31]
[null,null,null,32]
[null,null,null,33]
[null,null,null,34]
[null,null,null,35]
[null,null,null,36]
[null,null,null,37]
[null,null,null,38]
[null,null,null,39]
[null,null,null,40]
[null,null,null,41]
[null,null,null,42]
[null,null,null,43]
[null,null,null,44]
[null,null,null,45]
[null,null,null,46]
[null,null,null,47]
[null,null,null,48]
[null,null,null,49]
[null,null,null,50]
[null,null,null,51]
[null,null,null,52]
[null,null,null,53]
[null,null,null,54]
[null,null,null,55]
[null,null,null,56]
[null,null,null,57]
[null,null,null,58]
[null,null,null,59]
[null,null,null,60]
[null,null,null,61]
[null,null,null,62]
[null,null,null,63]
[null,null,null,64]
[null,null,null,65]
[null,null,null,66]
[null,null,null,67]
[null,null,null,68]
[null,null,null,69]
[null,null,null,70]
[null,null,null,71]
[null,null,null,72]
[null,null,null,73]
[null,null,null,74]
[null,null,null,75]
[null,null,null,76]
[null,null,null,77]
[null,null,null,78]
[null,null,null,79]
[null,null,null,80]
[null,null,null,81]
["ОК 07.",null,null,1,"Содействовать сохранению окружающей среды, ресурсосбережению, эффективно действовать в чрезвычайных ситуациях."]
[null,null,null,2]
[null,null,null,3]
[null,null,null,4]
[null,null,null,5]
[null,null,null,6]
[null,null,null,7]
[null,null,null,8]
[null,null,null,9]
[null,null,null,10]
[null,null,null,11]
[null,null,null,12]
[null,null,null,13]
[null,null,null,14]
[null,null,null,15]
[null,null,null,16]
[null,null,null,17]
[null,null,null,18]
[null,null,null,19]
[null,null,null,20]
[null,null,null,21]
[null,null,null,22]
[null,null,null,23]
[null,null,null,24]
[null,null,null,25]
[null,null,null,26]
[null,null,null,27]
[null,null,null,28]
[null,null,null,29]
[null,null,null,30]
[null,null,null,31]
[null,null,null,32]
[null,null,null,33]
[null,null,null,34]
[null,null,null,35]
[null,null,null,36]
[null,null,null,37]
[null,null,null,38]
[null,null,null,39]
[null,null,null,40]
[null,null,null,41]
[null,null,null,42]
[null,null,null,43]
[null,null,null,44]
[null,null,null,45]
[null,null,null,46]
[null,null,null,47]
[null,null,null,48]
[null,null,null,49]
[null,null,null,50]
[null,null,null,51]
[null,null,null,52]
[null,null,null,53]
[null,null,null,54]
[null,null,null,55]
[null,null,null,56]
[null,null,null,57]
[null,null,null,58]
[null,null,null,59]
[null,null,null,60]
[null,null,null,61]
[null,null,null,62]
[null,null,null,63]
[null,null,null,64]
[null,null,null,65]
[null,null,null,66]
[null,null,null,67]
[null,null,null,68]
[null,null,null,69]
[null,null,null,70]
[null,null,null,71]
[null,null,null,72]
[null,null,null,73]
[null,null,null,74]
[null,null,null,75]
[null,null,null,76]
[null,null,null,77]
[null,null,null,78]
[null,null,null,79]
[null,null,null,80]
[null,null,null,81]
["ОК 08.",null,null,1,"Использовать средства физической культуры для сохранения и укрепления здоровья в процессе профессиональной деятельности и поддержания необходимого уровня физической подготовленности."]
[null,null,null,2]
[null,null,null,3]
[null,null,null,4]
[null,null,null,5]
[null,null,null,6]
[null,null,null,7]
[null,null,null,8]
[null,null,null,9]
[null,null,null,10]
[null,null,null,11]
[null,null,null,12]
[null,null,null,13]
[null,null,null,14]
[null,null,null,15]
[null,null,null,16]
[null,null,null,17]
[null,null,null,18]
[null,null,null,19]
[null,null,null,20]
[null,null,null,21]
[null,null,null,22]
[null,null,null,23]
[null,null,null,24]
[null,null,null,25]
[null,null,null,26]
[null,null,null,27]
[null,null,null,28]
[null,null,null,29]
[null,null,null,30]
[null,null,null,31]
[null,null,null,32]
[null,null,null,33]
[null,null,null,34]
[null,null,null,35]
[null,null,null,36]
[null,null,null,37]
[null,null,null,38]
[null,null,null,39]
[null,null,null,40]
[null,null,null,41]
[null,null,null,42]
[null,null,null,43]
[null,null,null,44]
[null,null,null,45]
[null,null,null,46]
[null,null,null,47]
[null,null,null,48]
[null,null,null,49]
[null,null,null,50]
[null,null,null,51]
[null,null,null,52]
[null,null,null,53]
[null,null,null,54]
[null,null,null,55]
[null,null,null,56]
[null,null,null,57]
[null,null,null,58]
[null,null,null,59]
[null,null,null,60]
[null,null,null,61]
[null,null,null,62]
[null,null,null,63]
[null,null,null,64]
[null,null,null,65]
[null,null,null,66]
[null,null,null,67]
[null,null,null,68]
[null,null,null,69]
[null,null,null,70]
[null,null,null,71]
[null,null,null,72]
[null,null,null,73]
[null,null,null,74]
[null,null,null,75]
[null,null,null,76]
[null,null,null,77]
[null,null,null,78]
[null,null,null,79]
[null,null,null,80]
[null,null,null,81]
["ОК 09.",null,null,1,"Использовать информационные технологии в профессиональной деятельности."]
[null,null,null,2]
[null,null,null,3]
[null,null,null,4]
[null,null,null,5]
[null,null,null,6]
[null,null,null,7]
[null,null,null,8]
[null,null,null,9]
[null,null,null,10]
[null,null,null,11]
[null,null,null,12]
[null,null,null,13]
[null,null,null,14]
[null,null,null,15]
[null,null,null,16]
[null,null,null,17]
[null,null,null,18]
[null,null,null,19]
[null,null,null,20]
[null,null,null,21]
[null,null,null,22]
[null,null,null,23]
[null,null,null,24]
[null,null,null,25]
[null,null,null,26]
[null,null,null,27]
[null,null,null,28]
[null,null,null,29]
[null,null,null,30]
[null,null,null,31]
[null,null,null,32]
[null,null,null,33]
[null,null,null,34]
[null,null,null,35]
[null,null,null,36]
[null,null,null,37]
[null,null,null,38]
[null,null,null,39]
[null,null,null,40]
[null,null,null,41]
[null,null,null,42]
[null,null,null,43]
[null,null,null,44]
[null,null,null,45]
[null,null,null,46]
[null,null,null,47]
[null,null,null,48]
[null,null,null,49]
[null,null,null,50]
[null,null,null,51]
[null,null,null,52]
[null,null,null,53]
[null,null,null,54]
[null,null,null,55]
[null,null,null,56]
[null,null,null,57]
[null,null,null,58]
[null,null,null,59]
[null,null,null,60]
[null,null,null,61]
[null,null,null,62]
[null,null,null,63]
[null,null,null,64]
[null,null,null,65]
[null,null,null,66]
[null,null,null,67]
[null,null,null,68]
[null,null,null,69]
[null,null,null,70]
[null,null,null,71]
[null,null,null,72]
[null,null,null,73]
[null,null,null,74]
[null,null,null,75]
[null,null,null,76]
[null,null,null,77]
[null,null,null,78]
[null,null,null,79]
[null,null,null,80]
[null,null,null,81]
["ОК 10.",null,null,1,"Пользоваться профессиональной документацией на государственном и иностранном языках."]
[null,null,null,2]
[null,null,null,3]
[null,null,null,4]
[null,null,null,5]
[null,null,null,6]
[null,null,null,7]
[null,null,null,8]
[null,null,null,9]
[null,null,null,10]
[null,null,null,11]
[null,null,null,12]
[null,null,null,13]
[null,null,null,14]
[null,null,null,15]
[null,null,null,16]
[null,null,null,17]
[null,null,null,18]
[null,null,null,19]
[null,null,null,20]
[null,null,null,21]
[null,null,null,22]
[null,null,null,23]
[null,null,null,24]
[null,null,null,25]
[null,null,null,26]
[null,null,null,27]
[null,null,null,28]
[null,null,null,29]
[null,null,null,30]
[null,null,null,31]
[null,null,null,32]
[null,null,null,33]
[null,null,null,34]
[null,null,null,35]
[null,null,null,36]
[null,null,null,37]
[null,null,null,38]
[null,null,null,39]
[null,null,null,40]
[null,null,null,41]
[null,null,null,42]
[null,null,null,43]
[null,null,null,44]
[null,null,null,45]
[null,null,null,46]
[null,null,null,47]
[null,null,null,48]
[null,null,null,49]
[null,null,null,50]
[null,null,null,51]
[null,null,null,52]
[null,null,null,53]
[null,null,null,54]
[null,null,null,55]
[null,null,null,56]
[null,null,null,57]
[null,null,null,58]
[null,null,null,59]
[null,null,null,60]
[null,null,null,61]
[null,null,null,62]
[null,null,null,63]
[null,null,null,64]
[null,null,null,65]
[null,null,null,66]
[null,null,null,67]
[null,null,null,68]
[null,null,null,69]
[null,null,null,70]
[null,null,null,71]
[null,null,null,72]
[null,null,null,73]
[null,null,null,74]
[null,null,null,75]
[null,null,null,76]
[null,null,null,77]
[null,null,null,78]
[null,null,null,79]
[null,null,null,80]
[null,null,null,81]
["ОК 11.",null,null,1,"Использовать знания финансовой грамотности, планировать предпринимательскую деятельность в профессиональной сфере"]
[null,null,null,2]
[null,null,null,3]
[null,null,null,4]
[null,null,null,5]
[null,null,null,6]
[null,null,null,7]
[null,null,null,8]
[null,null,null,9]
[null,null,null,10]
[null,null,null,11]
[null,null,null,12]
[null,null,null,13]
[null,null,null,14]
[null,null,null,15]
[null,null,null,16]
[null,null,null,17]
[null,null,null,18]
[null,null,null,19]
[null,null,null,20]
[null,null,null,21]
[null,null,null,22]
[null,null,null,23]
[null,null,null,24]
[null,null,null,25]
[null,null,null,26]
[null,null,null,27]
[null,null,null,28]
[null,null,null,29]
[null,null,null,30]
[null,null,null,31]
[null,null,null,32]
[null,null,null,33]
[null,null,null,34]
[null,null,null,35]
[null,null,null,36]
[null,null,null,37]
[null,null,null,38]
[null,null,null,39]
[null,null,null,40]
[null,null,null,41]
[null,null,null,42]
[null,null,null,43]
[null,null,null,44]
[null,null,null,45]
[null,null,null,46]
[null,null,null,47]
[null,null,null,48]
[null,null,null,49]
[null,null,null,50]
[null,null,null,51]
[null,null,null,52]
[null,null,null,53]
[null,null,null,54]
[null,null,null,55]
[null,null,null,56]
[null,null,null,57]
[null,null,null,58]
[null,null,null,59]
[null,null,null,60]
[null,null,null,61]
[null,null,null,62]
[null,null,null,63]
[null,null,null,64]
[null,null,null,65]
[null,null,null,66]
[null,null,null,67]
[null,null,null,68]
[null,null,null,69]
[null,null,null,70]
[null,null,null,71]
[null,null,null,72]
[null,null,null,73]
[null,null,null,74]
[null,null,null,75]
[null,null,null,76]
[null,null,null,77]
[null,null,null,78]
[null,null,null,79]
[null,null,null,80]
[null,null,null,81]
["ПК 1.1.",null,null,1,"Осуществлять сбор, систематизацию и анализ данных необходимых для разработки технического задания дизайн-продукта."]
[null,null,null,2]
[null,null,null,3]
[null,null,null,4]
[null,null,null,5]
[null,null,null,6]
[null,null,null,7]
[null,null,null,8]
[null,null,null,9]
[null,null,null,10]
[null,null,null,11]
[null,null,null,12]
[null,null,null,13]
[null,null,null,14]
[null,null,null,15]
[null,null,null,16]
[null,null,null,17]
[null,null,null,18]
[null,null,null,19]
[null,null,null,20]
[null,null,null,21]
[null,null,null,22]
[null,null,null,23]
[null,null,null,24]
[null,null,null,25]
[null,null,null,26]
[null,null,null,27]
[null,null,null,28]
[null,null,null,29]
[null,null,null,30]
[null,null,null,31]
[null,null,null,32]
[null,null,null,33]
[null,null,null,34]
[null,null,null,35]
[null,null,null,36]
[null,null,null,37]
[null,null,null,38]
[null,null,null,39]
[null,null,null,40]
[null,null,null,41]
[null,null,null,42]
[null,null,null,43]
[null,null,null,44]
[null,null,null,45]
[null,null,null,46]
[null,null,null,47]
[null,null,null,48]
[null,null,null,49]
[null,null,null,50]
[null,null,null,51]
[null,null,null,52]
[null,null,null,53]
[null,null,null,54]
[null,null,null,55]
[null,null,null,56]
[null,null,null,57]
[null,null,null,58]
[null,null,null,59]
[null,null,null,60]
[null,null,null,61]
[null,null,null,62]
[null,null,null,63]
[null,null,null,64]
[null,null,null,65]
[null,null,null,66]
[null,null,null,67]
[null,null,null,68]
[null,null,null,69]
[null,null,null,70]
[null,null,null,71]
[null,null,null,72]
[null,null,null,73]
[null,null,null,74]
[null,null,null,75]
[null,null,null,76]
[null,null,null,77]
[null,null,null,78]
[null,null,null,79]
[null,null,null,80]
[null,null,null,81]
["ПК 1.2.",null,null,1,"Определять выбор технических и программных средств для разработки дизайн-макета с учетом их особенностей использования."]
[null,null,null,2]
[null,null,null,3]
[null,null,null,4]
[null,null,null,5]
[null,null,null,6]
[null,null,null,7]
[null,null,null,8]
[null,null,null,9]
[null,null,null,10]
[null,null,null,11]
[null,null,null,12]
[null,null,null,13]
[null,null,null,14]
[null,null,null,15]
[null,null,null,16]
[null,null,null,17]
[null,null,null,18]
[null,null,null,19]
[null,null,null,20]
[null,null,null,21]
[null,null,null,22]
[null,null,null,23]
[null,null,null,24]
[null,null,null,25]
[null,null,null,26]
[null,null,null,27]
[null,null,null,28]
[null,null,null,29]
[null,null,null,30]
[null,null,null,31]
[null,null,null,32]
[null,null,null,33]
[null,null,null,34]
[null,null,null,35]
[null,null,null,36]
[null,null,null,37]
[null,null,null,38]
[null,null,null,39]
[null,null,null,40]
[null,null,null,41]
[null,null,null,42]
[null,null,null,43]
[null,null,null,44]
[null,null,null,45]
[null,null,null,46]
[null,null,null,47]
[null,null,null,48]
[null,null,null,49]
[null,null,null,50]
[null,null,null,51]
[null,null,null,52]
[null,null,null,53]
[null,null,null,54]
[null,null,null,55]
[null,null,null,56]
[null,null,null,57]
[null,null,null,58]
[null,null,null,59]
[null,null,null,60]
[null,null,null,61]
[null,null,null,62]
[null,null,null,63]
[null,null,null,64]
[null,null,null,65]
[null,null,null,66]
[null,null,null,67]
[null,null,null,68]
[null,null,null,69]
[null,null,null,70]
[null,null,null,71]
[null,null,null,72]
[null,null,null,73]
[null,null,null,74]
[null,null,null,75]
[null,null,null,76]
[null,null,null,77]
[null,null,null,78]
[null,null,null,79]
[null,null,null,80]
[null,null,null,81]
["ПК 1.3.",null,null,1,"Формировать готовое техническое задание в соответствии с требованиями к структуре и содержанию."]
[null,null,null,2]
[null,null,null,3]
[null,null,null,4]
[null,null,null,5]
[null,null,null,6]
[null,null,null,7]
[null,null,null,8]
[null,null,null,9]
[null,null,null,10]
[null,null,null,11]
[null,null,null,12]
[null,null,null,13]
[null,null,null,14]
[null,null,null,15]
[null,null,null,16]
[null,null,null,17]
[null,null,null,18]
[null,null,null,19]
[null,null,null,20]
[null,null,null,21]
[null,null,null,22]
[null,null,null,23]
[null,null,null,24]
[null,null,null,25]
[null,null,null,26]
[null,null,null,27]
[null,null,null,28]
[null,null,null,29]
[null,null,null,30]
[null,null,null,31]
[null,null,null,32]
[null,null,null,33]
[null,null,null,34]
[null,null,null,35]
[null,null,null,36]
[null,null,null,37]
[null,null,null,38]
[null,null,null,39]
[null,null,null,40]
[null,null,null,41]
[null,null,null,42]
[null,null,null,43]
[null,null,null,44]
[null,null,null,45]
[null,null,null,46]
[null,null,null,47]
[null,null,null,48]
[null,null,null,49]
[null,null,null,50]
[null,null,null,51]
[null,null,null,52]
[null,null,null,53]
[null,null,null,54]
[null,null,null,55]
[null,null,null,56]
[null,null,null,57]
[null,null,null,58]
[null,null,null,59]
[null,null,null,60]
[null,null,null,61]
[null,null,null,62]
[null,null,null,63]
[null,null,null,64]
[null,null,null,65]
[null,null,null,66]
[null,null,null,67]
[null,null,null,68]
[null,null,null,69]
[null,null,null,70]
[null,null,null,71]
[null,null,null,72]
[null,null,null,73]
[null,null,null,74]
[null,null,null,75]
[null,null,null,76]
[null,null,null,77]
[null,null,null,78]
[null,null,null,79]
[null,null,null,80]
[null,null,null,81]
["ПК 1.4.",null,null,1,"Выполнять процедуру согласования (утверждения) с заказчиком."]
[null,null,null,2]
[null,null,null,3]
[null,null,null,4]
[null,null,null,5]
[null,null,null,6]
[null,null,null,7]
[null,null,null,8]
[null,null,null,9]
[null,null,null,10]
[null,null,null,11]
[null,null,null,12]
[null,null,null,13]
[null,null,null,14]
[null,null,null,15]
[null,null,null,16]
[null,null,null,17]
[null,null,null,18]
[null,null,null,19]
[null,null,null,20]
[null,null,null,21]
[null,null,null,22]
[null,null,null,23]
[null,null,null,24]
[null,null,null,25]
[null,null,null,26]
[null,null,null,27]
[null,null,null,28]
[null,null,null,29]
[null,null,null,30]
[null,null,null,31]
[null,null,null,32]
[null,null,null,33]
[null,null,null,34]
[null,null,null,35]
[null,null,null,36]
[null,null,null,37]
[null,null,null,38]
[null,null,null,39]
[null,null,null,40]
[null,null,null,41]
[null,null,null,42]
[null,null,null,43]
[null,null,null,44]
[null,null,null,45]
[null,null,null,46]
[null,null,null,47]
[null,null,null,48]
[null,null,null,49]
[null,null,null,50]
[null,null,null,51]
[null,null,null,52]
[null,null,null,53]
[null,null,null,54]
[null,null,null,55]
[null,null,null,56]
[null,null,null,57]
[null,null,null,58]
[null,null,null,59]
[null,null,null,60]
[null,null,null,61]
[null,null,null,62]
[null,null,null,63]
[null,null,null,64]
[null,null,null,65]
[null,null,null,66]
[null,null,null,67]
[null,null,null,68]
[null,null,null,69]
[null,null,null,70]
[null,null,null,71]
[null,null,null,72]
[null,null,null,73]
[null,null,null,74]
[null,null,null,75]
[null,null,null,76]
[null,null,null,77]
[null,null,null,78]
[null,null,null,79]
[null,null,null,80]
[null,null,null,81]
["ПК 2.1.",null,null,1,"Планировать выполнение работ по разработке дизайн-макета на основе технического задания."]
[null,null,null,2]
[null,null,null,3]
[null,null,null,4]
[null,null,null,5]
[null,null,null,6]
[null,null,null,7]
[null,null,null,8]
[null,null,null,9]
[null,null,null,10]
[null,null,null,11]
[null,null,null,12]
[null,null,null,13]
[null,null,null,14]
[null,null,null,15]
[null,null,null,16]
[null,null,null,17]
[null,null,null,18]
[null,null,null,19]
[null,null,null,20]
[null,null,null,21]
[null,null,null,22]
[null,null,null,23]
[null,null,null,24]
[null,null,null,25]
[null,null,null,26]
[null,null,null,27]
[null,null,null,28]
[null,null,null,29]
[null,null,null,30]
[null,null,null,31]
[null,null,null,32]
[null,null,null,33]
[null,null,null,34]
[null,null,null,35]
[null,null,null,36]
[null,null,null,37]
[null,null,null,38]
[null,null,null,39]
[null,null,null,40]
[null,null,null,41]
[null,null,null,42]
[null,null,null,43]
[null,null,null,44]
[null,null,null,45]
[null,null,null,46]
[null,null,null,47]
[null,null,null,48]
[null,null,null,49]
[null,null,null,50]
[null,null,null,51]
[null,null,null,52]
[null,null,null,53]
[null,null,null,54]
[null,null,null,55]
[null,null,null,56]
[null,null,null,57]
[null,null,null,58]
[null,null,null,59]
[null,null,null,60]
[null,null,null,61]
[null,null,null,62]
[null,null,null,63]
[null,null,null,64]
[null,null,null,65]
[null,null,null,66]
[null,null,null,67]
[null,null,null,68]
[null,null,null,69]
[null,null,null,70]
[null,null,null,71]
[null,null,null,72]
[null,null,null,73]
[null,null,null,74]
[null,null,null,75]
[null,null,null,76]
[null,null,null,77]
[null,null,null,78]
[null,null,null,79]
[null,null,null,80]
[null,null,null,81]
["ПК 2.2.",null,null,1,"Определять потребности в программных продуктах, материалах и оборудовании при разработке дизайн-макета на основе технического задания."]
[null,null,null,2]
[null,null,null,3]
[null,null,null,4]
[null,null,null,5]
[null,null,null,6]
[null,null,null,7]
[null,null,null,8]
[null,null,null,9]
[null,null,null,10]
[null,null,null,11]
[null,null,null,12]
[null,null,null,13]
[null,null,null,14]
[null,null,null,15]
[null,null,null,16]
[null,null,null,17]
[null,null,null,18]
[null,null,null,19]
[null,null,null,20]
[null,null,null,21]
[null,null,null,22]
[null,null,null,23]
[null,null,null,24]
[null,null,null,25]
[null,null,null,26]
[null,null,null,27]
[null,null,null,28]
[null,null,null,29]
[null,null,null,30]
[null,null,null,31]
[null,null,null,32]
[null,null,null,33]
[null,null,null,34]
[null,null,null,35]
[null,null,null,36]
[null,null,null,37]
[null,null,null,38]
[null,null,null,39]
[null,null,null,40]
[null,null,null,41]
[null,null,null,42]
[null,null,null,43]
[null,null,null,44]
[null,null,null,45]
[null,null,null,46]
[null,null,null,47]
[null,null,null,48]
[null,null,null,49]
[null,null,null,50]
[null,null,null,51]
[null,null,null,52]
[null,null,null,53]
[null,null,null,54]
[null,null,null,55]
[null,null,null,56]
[null,null,null,57]
[null,null,null,58]
[null,null,null,59]
[null,null,null,60]
[null,null,null,61]
[null,null,null,62]
[null,null,null,63]
[null,null,null,64]
[null,null,null,65]
[null,null,null,66]
[null,null,null,67]
[null,null,null,68]
[null,null,null,69]
[null,null,null,70]
[null,null,null,71]
[null,null,null,72]
[null,null,null,73]
[null,null,null,74]
[null,null,null,75]
[null,null,null,76]
[null,null,null,77]
[null,null,null,78]
[null,null,null,79]
[null,null,null,80]
[null,null,null,81]
["ПК 2.3.",null,null,1,"Разрабатывать дизайн-макет на основе технического задания."]
[null,null,null,2]
[null,null,null,3]
[null,null,null,4]
[null,null,null,5]
[null,null,null,6]
[null,null,null,7]
[null,null,null,8]
[null,null,null,9]
[null,null,null,10]
[null,null,null,11]
[null,null,null,12]
[null,null,null,13]
[null,null,null,14]
[null,null,null,15]
[null,null,null,16]
[null,null,null,17]
[null,null,null,18]
[null,null,null,19]
[null,null,null,20]
[null,null,null,21]
[null,null,null,22]
[null,null,null,23]
[null,null,null,24]
[null,null,null,25]
[null,null,null,26]
[null,null,null,27]
[null,null,null,28]
[null,null,null,29]
[null,null,null,30]
[null,null,null,31]
[null,null,null,32]
[null,null,null,33]
[null,null,null,34]
[null,null,null,35]
[null,null,null,36]
[null,null,null,37]
[null,null,null,38]
[null,null,null,39]
[null,null,null,40]
[null,null,null,41]
[null,null,null,42]
[null,null,null,43]
[null,null,null,44]
[null,null,null,45]
[null,null,null,46]
[null,null,null,47]
[null,null,null,48]
[null,null,null,49]
[null,null,null,50]
[null,null,null,51]
[null,null,null,52]
[null,null,null,53]
[null,null,null,54]
[null,null,null,55]
[null,null,null,56]
[null,null,null,57]
[null,null,null,58]
[null,null,null,59]
[null,null,null,60]
[null,null,null,61]
[null,null,null,62]
[null,null,null,63]
[null,null,null,64]
[null,null,null,65]
[null,null,null,66]
[null,null,null,67]
[null,null,null,68]
[null,null,null,69]
[null,null,null,70]
[null,null,null,71]
[null,null,null,72]
[null,null,null,73]
[null,null,null,74]
[null,null,null,75]
[null,null,null,76]
[null,null,null,77]
[null,null,null,78]
[null,null,null,79]
[null,null,null,80]
[null,null,null,81]
["ПК 2.4.",null,null,1,"Осуществлять представление и защиту разработанного дизайн-макета."]
[null,null,null,2]
[null,null,null,3]
[null,null,null,4]
[null,null,null,5]
[null,null,null,6]
[null,null,null,7]
[null,null,null,8]
[null,null,null,9]
[null,null,null,10]
[null,null,null,11]
[null,null,null,12]
[null,null,null,13]
[null,null,null,14]
[null,null,null,15]
[null,null,null,16]
[null,null,null,17]
[null,null,null,18]
[null,null,null,19]
[null,null,null,20]
[null,null,null,21]
[null,null,null,22]
[null,null,null,23]
[null,null,null,24]
[null,null,null,25]
[null,null,null,26]
[null,null,null,27]
[null,null,null,28]
[null,null,null,29]
[null,null,null,30]
[null,null,null,31]
[null,null,null,32]
[null,null,null,33]
[null,null,null,34]
[null,null,null,35]
[null,null,null,36]
[null,null,null,37]
[null,null,null,38]
[null,null,null,39]
[null,null,null,40]
[null,null,null,41]
[null,null,null,42]
[null,null,null,43]
[null,null,null,44]
[null,null,null,45]
[null,null,null,46]
[null,null,null,47]
[null,null,null,48]
[null,null,null,49]
[null,null,null,50]
[null,null,null,51]
[null,null,null,52]
[null,null,null,53]
[null,null,null,54]
[null,null,null,55]
[null,null,null,56]
[null,null,null,57]
[null,null,null,58]
[null,null,null,59]
[null,null,null,60]
[null,null,null,61]
[null,null,null,62]
[null,null,null,63]
[null,null,null,64]
[null,null,null,65]
[null,null,null,66]
[null,null,null,67]
[null,null,null,68]
[null,null,null,69]
[null,null,null,70]
[null,null,null,71]
[null,null,null,72]
[null,null,null,73]
[null,null,null,74]
[null,null,null,75]
[null,null,null,76]
[null,null,null,77]
[null,null,null,78]
[null,null,null,79]
[null,null,null,80]
[null,null,null,81]
["ПК 2.5.",null,null,1,"Осуществлять комплектацию и контроль готовности необходимых составляющих дизайн-макета для формирования дизайн-продукта."]
[null,null,null,2]
[null,null,null,3]
[null,null,null,4]
[null,null,null,5]
[null,null,null,6]
[null,null,null,7]
[null,null,null,8]
[null,null,null,9]
[null,null,null,10]
[null,null,null,11]
[null,null,null,12]
[null,null,null,13]
[null,null,null,14]
[null,null,null,15]
[null,null,null,16]
[null,null,null,17]
[null,null,null,18]
[null,null,null,19]
[null,null,null,20]
[null,null,null,21]
[null,null,null,22]
[null,null,null,23]
[null,null,null,24]
[null,null,null,25]
[null,null,null,26]
[null,null,null,27]
[null,null,null,28]
[null,null,null,29]
[null,null,null,30]
[null,null,null,31]
[null,null,null,32]
[null,null,null,33]
[null,null,null,34]
[null,null,null,35]
[null,null,null,36]
[null,null,null,37]
[null,null,null,38]
[null,null,null,39]
[null,null,null,40]
[null,null,null,41]
[null,null,null,42]
[null,null,null,43]
[null,null,null,44]
[null,null,null,45]
[null,null,null,46]
[null,null,null,47]
[null,null,null,48]
[null,null,null,49]
[null,null,null,50]
[null,null,null,51]
[null,null,null,52]
[null,null,null,53]
[null,null,null,54]
[null,null,null,55]
[null,null,null,56]
[null,null,null,57]
[null,null,null,58]
[null,null,null,59]
[null,null,null,60]
[null,null,null,61]
[null,null,null,62]
[null,null,null,63]
[null,null,null,64]
[null,null,null,65]
[null,null,null,66]
[null,null,null,67]
[null,null,null,68]
[null,null,null,69]
[null,null,null,70]
[null,null,null,71]
[null,null,null,72]
[null,null,null,73]
[null,null,null,74]
[null,null,null,75]
[null,null,null,76]
[null,null,null,77]
[null,null,null,78]
[null,null,null,79]
[null,null,null,80]
[null,null,null,81]
["ПК 3.1.",null,null,1,"Выполнять настройку технических параметров печати (публикации) дизайн-макета."]
[null,null,null,2]
[null,null,null,3]
[null,null,null,4]
[null,null,null,5]
[null,null,null,6]
[null,null,null,7]
[null,null,null,8]
[null,null,null,9]
[null,null,null,10]
[null,null,null,11]
[null,null,null,12]
[null,null,null,13]
[null,null,null,14]
[null,null,null,15]
[null,null,null,16]
[null,null,null,17]
[null,null,null,18]
[null,null,null,19]
[null,null,null,20]
[null,null,null,21]
[null,null,null,22]
[null,null,null,23]
[null,null,null,24]
[null,null,null,25]
[null,null,null,26]
[null,null,null,27]
[null,null,null,28]
[null,null,null,29]
[null,null,null,30]
[null,null,null,31]
[null,null,null,32]
[null,null,null,33]
[null,null,null,34]
[null,null,null,35]
[null,null,null,36]
[null,null,null,37]
[null,null,null,38]
[null,null,null,39]
[null,null,null,40]
[null,null,null,41]
[null,null,null,42]
[null,null,null,43]
[null,null,null,44]
[null,null,null,45]
[null,null,null,46]
[null,null,null,47]
[null,null,null,48]
[null,null,null,49]
[null,null,null,50]
[null,null,null,51]
[null,null,null,52]
[null,null,null,53]
[null,null,null,54]
[null,null,null,55]
[null,null,null,56]
[null,null,null,57]
[null,null,null,58]
[null,null,null,59]
[null,null,null,60]
[null,null,null,61]
[null,null,null,62]
[null,null,null,63]
[null,null,null,64]
[null,null,null,65]
[null,null,null,66]
[null,null,null,67]
[null,null,null,68]
[null,null,null,69]
[null,null,null,70]
[null,null,null,71]
[null,null,null,72]
[null,null,null,73]
[null,null,null,74]
[null,null,null,75]
[null,null,null,76]
[null,null,null,77]
[null,null,null,78]
[null,null,null,79]
[null,null,null,80]
[null,null,null,81]
["ПК 3.2.",null,null,1,"Оценивать соответствие готового дизайн-продукта требованиям качества печати (публикации)."]
[null,null,null,2]
[null,null,null,3]
[null,null,null,4]
[null,null,null,5]
[null,null,null,6]
[null,null,null,7]
[null,null,null,8]
[null,null,null,9]
[null,null,null,10]
[null,null,null,11]
[null,null,null,12]
[null,null,null,13]
[null,null,null,14]
[null,null,null,15]
[null,null,null,16]
[null,null,null,17]
[null,null,null,18]
[null,null,null,19]
[null,null,null,20]
[null,null,null,21]
[null,null,null,22]
[null,null,null,23]
[null,null,null,24]
[null,null,null,25]
[null,null,null,26]
[null,null,null,27]
[null,null,null,28]
[null,null,null,29]
[null,null,null,30]
[null,null,null,31]
[null,null,null,32]
[null,null,null,33]
[null,null,null,34]
[null,null,null,35]
[null,null,null,36]
[null,null,null,37]
[null,null,null,38]
[null,null,null,39]
[null,null,null,40]
[null,null,null,41]
[null,null,null,42]
[null,null,null,43]
[null,null,null,44]
[null,null,null,45]
[null,null,null,46]
[null,null,null,47]
[null,null,null,48]
[null,null,null,49]
[null,null,null,50]
[null,null,null,51]
[null,null,null,52]
[null,null,null,53]
[null,null,null,54]
[null,null,null,55]
[null,null,null,56]
[null,null,null,57]
[null,null,null,58]
[null,null,null,59]
[null,null,null,60]
[null,null,null,61]
[null,null,null,62]
[null,null,null,63]
[null,null,null,64]
[null,null,null,65]
[null,null,null,66]
[null,null,null,67]
[null,null,null,68]
[null,null,null,69]
[null,null,null,70]
[null,null,null,71]
[null,null,null,72]
[null,null,null,73]
[null,null,null,74]
[null,null,null,75]
[null,null,null,76]
[null,null,null,77]
[null,null,null,78]
[null,null,null,79]
[null,null,null,80]
[null,null,null,81]
["ПК 3.3.",null,null,1,"Осуществлять сопровождение печати (публикации)."]
[null,null,null,2]
[null,null,null,3]
[null,null,null,4]
[null,null,null,5]
[null,null,null,6]
[null,null,null,7]
[null,null,null,8]
[null,null,null,9]
[null,null,null,10]
[null,null,null,11]
[null,null,null,12]
[null,null,null,13]
[null,null,null,14]
[null,null,null,15]
[null,null,null,16]
[null,null,null,17]
[null,null,null,18]
[null,null,null,19]
[null,null,null,20]
[null,null,null,21]
[null,null,null,22]
[null,null,null,23]
[null,null,null,24]
[null,null,null,25]
[null,null,null,26]
[null,null,null,27]
[null,null,null,28]
[null,null,null,29]
[null,null,null,30]
[null,null,null,31]
[null,null,null,32]
[null,null,null,33]
[null,null,null,34]
[null,null,null,35]
[null,null,null,36]
[null,null,null,37]
[null,null,null,38]
[null,null,null,39]
[null,null,null,40]
[null,null,null,41]
[null,null,null,42]
[null,null,null,43]
[null,null,null,44]
[null,null,null,45]
[null,null,null,46]
[null,null,null,47]
[null,null,null,48]
[null,null,null,49]
[null,null,null,50]
[null,null,null,51]
[null,null,null,52]
[null,null,null,53]
[null,null,null,54]
[null,null,null,55]
[null,null,null,56]
[null,null,null,57]
[null,null,null,58]
[null,null,null,59]
[null,null,null,60]
[null,null,null,61]
[null,null,null,62]
[null,null,null,63]
[null,null,null,64]
[null,null,null,65]
[null,null,null,66]
[null,null,null,67]
[null,null,null,68]
[null,null,null,69]
[null,null,null,70]
[null,null,null,71]
[null,null,null,72]
[null,null,null,73]
[null,null,null,74]
[null,null,null,75]
[null,null,null,76]
[null,null,null,77]
[null,null,null,78]
[null,null,null,79]
[null,null,null,80]
[null,null,null,81]
["ПК 4.1.",null,null,1,"Анализировать современные тенденции в области графического дизайна для их адаптации и использования в своей профессиональной деятельности."]
[null,null,null,2]
[null,null,null,3]
[null,null,null,4]
[null,null,null,5]
[null,null,null,6]
[null,null,null,7]
[null,null,null,8]
[null,null,null,9]
[null,null,null,10]
[null,null,null,11]
[null,null,null,12]
[null,null,null,13]
[null,null,null,14]
[null,null,null,15]
[null,null,null,16]
[null,null,null,17]
[null,null,null,18]
[null,null,null,19]
[null,null,null,20]
[null,null,null,21]
[null,null,null,22]
[null,null,null,23]
[null,null,null,24]
[null,null,null,25]
[null,null,null,26]
[null,null,null,27]
[null,null,null,28]
[null,null,null,29]
[null,null,null,30]
[null,null,null,31]
[null,null,null,32]
[null,null,null,33]
[null,null,null,34]
[null,null,null,35]
[null,null,null,36]
[null,null,null,37]
[null,null,null,38]
[null,null,null,39]
[null,null,null,40]
[null,null,null,41]
[null,null,null,42]
[null,null,null,43]
[null,null,null,44]
[null,null,null,45]
[null,null,null,46]
[null,null,null,47]
[null,null,null,48]
[null,null,null,49]
[null,null,null,50]
[null,null,null,51]
[null,null,null,52]
[null,null,null,53]
[null,null,null,54]
[null,null,null,55]
[null,null,null,56]
[null,null,null,57]
[null,null,null,58]
[null,null,null,59]
[null,null,null,60]
[null,null,null,61]
[null,null,null,62]
[null,null,null,63]
[null,null,null,64]
[null,null,null,65]
[null,null,null,66]
[null,null,null,67]
[null,null,null,68]
[null,null,null,69]
[null,null,null,70]
[null,null,null,71]
[null,null,null,72]
[null,null,null,73]
[null,null,null,74]
[null,null,null,75]
[null,null,null,76]
[null,null,null,77]
[null,null,null,78]
[null,null,null,79]
[null,null,null,80]
[null,null,null,81]
["ПК 4.2.",null,null,1,"Проводить мастер-классы, семинары и консультации по современным технологиям в области графического дизайна."]
[null,null,null,2]
[null,null,null,3]
[null,null,null,4]
[null,null,null,5]
[null,null,null,6]
[null,null,null,7]
[null,null,null,8]
[null,null,null,9]
[null,null,null,10]
[null,null,null,11]
[null,null,null,12]
[null,null,null,13]
[null,null,null,14]
[null,null,null,15]
[null,null,null,16]
[null,null,null,17]
[null,null,null,18]
[null,null,null,19]
[null,null,null,20]
[null,null,null,21]
[null,null,null,22]
[null,null,null,23]
[null,null,null,24]
[null,null,null,25]
[null,null,null,26]
[null,null,null,27]
[null,null,null,28]
[null,null,null,29]
[null,null,null,30]
[null,null,null,31]
[null,null,null,32]
[null,null,null,33]
[null,null,null,34]
[null,null,null,35]
[null,null,null,36]
[null,null,null,37]
[null,null,null,38]
[null,null,null,39]
[null,null,null,40]
[null,null,null,41]
[null,null,null,42]
[null,null,null,43]
[null,null,null,44]
[null,null,null,45]
[null,null,null,46]
[null,null,null,47]
[null,null,null,48]
[null,null,null,49]
[null,null,null,50]
[null,null,null,51]
[null,null,null,52]
[null,null,null,53]
[null,null,null,54]
[null,null,null,55]
[null,null,null,56]
[null,null,null,57]
[null,null,null,58]
[null,null,null,59]
[null,null,null,60]
[null,null,null,61]
[null,null,null,62]
[null,null,null,63]
[null,null,null,64]
[null,null,null,65]
[null,null,null,66]
[null,null,null,67]
[null,null,null,68]
[null,null,null,69]
[null,null,null,70]
[null,null,null,71]
[null,null,null,72]
[null,null,null,73]
[null,null,null,74]
[null,null,null,75]
[null,null,null,76]
[null,null,null,77]
[null,null,null,78]
[null,null,null,79]
[null,null,null,80]
[null,null,null,81]
["ПК 4.3.",null,null,1,"Разрабатывать предложения по использованию новых технологий в целях повышения качества создания дизайн-продуктов и обслуживания заказчиков."]
[null,null,null,2]
[null,null,null,3]
[null,null,null,4]
[null,null,null,5]
[null,null,null,6]
[null,null,null,7]
[null,null,null,8]
[null,null,null,9]
[null,null,null,10]
[null,null,null,11]
[null,null,null,12]
[null,null,null,13]
[null,null,null,14]
[null,null,null,15]
[null,null,null,16]
[null,null,null,17]
[null,null,null,18]
[null,null,null,19]
[null,null,null,20]
[null,null,null,21]
[null,null,null,22]
[null,null,null,23]
[null,null,null,24]
[null,null,null,25]
[null,null,null,26]
[null,null,null,27]
[null,null,null,28]
[null,null,null,29]
[null,null,null,30]
[null,null,null,31]
[null,null,null,32]
[null,null,null,33]
[null,null,null,34]
[null,null,null,35]
[null,null,null,36]
[null,null,null,37]
[null,null,null,38]
[null,null,null,39]
[null,null,null,40]
[null,null,null,41]
[null,null,null,42]
[null,null,null,43]
[null,null,null,44]
[null,null,null,45]
[null,null,null,46]
[null,null,null,47]
[null,null,null,48]
[null,null,null,49]
[null,null,null,50]
[null,null,null,51]
[null,null,null,52]
[null,null,null,53]
[null,null,null,54]
[null,null,null,55]
[null,null,null,56]
[null,null,null,57]
[null,null,null,58]
[null,null,null,59]
[null,null,null,60]
[null,null,null,61]
[null,null,null,62]
[null,null,null,63]
[null,null,null,64]
[null,null,null,65]
[null,null,null,66]
[null,null,null,67]
[null,null,null,68]
[null,null,null,69]
[null,null,null,70]
[null,null,null,71]
[null,null,null,72]
[null,null,null,73]
[null,null,null,74]
[null,null,null,75]
[null,null,null,76]
[null,null,null,77]
[null,null,null,78]
[null,null,null,79]
[null,null,null,80]
[null,null,null,81]

{"sheet":"Кабинеты","index":5,"n_rows":20,"n_cols":3,"rows_kept":20,"cut":false,"hidden":false,"merged":[]}
[null,"№","Наименование"]
[null,null,"Кабинеты:"]
[null,"1","социально-экономических дисциплин"]
[null,"2","иностранного языка"]
[null,"3","компьютерных (информационных) технологий"]
[null,"4","безопасности жизнедеятельности"]
[null,null,"Лаборатории:"]
[null,"1","материаловедения"]
[null,"2","живописи и дизайна"]
[null,"3","художественно-конструкторского проектирования"]
[null,"4","мультимедийных технологий"]
[null,"5","графических работ и макетирования"]
[null,"6","макетирования и 3D-моделирования"]
[null,null,"Мастерские:"]
[null,"1","учебно-производственная мастерская (печатных процессов)"]
[null,null,"Спортивный комплекс :"]
[null,"1","спортивный зал  и спортивная площадка"]
[null,null,"Залы:"]
[null,"1","библиотека, читальный зал с выходом в сеть Интернет"]
[null,"2","актовый зал"]

{"sheet":"Пояснения","index":6,"n_rows":15,"n_cols":3,"rows_kept":15,"cut":false,"hidden":false,"merged":[[7,1,7,3],[9,1,9,3],[0,1,0,3],[1,1,1,3],[2,1,2,3],[3,1,3,3],[4,1,4,3],[5,1,5,3],[6,1,6,3]]}
[null,"Пояснения"]
[null,"Пояснения    "]
[null,"1. Настоящий учебный план программы подготовки квалифицированных рабочих, служащих среднего профессионального образования Санкт-Петербургского государственного бюджетного профессионального образовательного учреждения  «Петровский колледж» (далее - ОУ) разработан на основе Федерального государственного образовательного стандарта среднего профессионального образования (далее – СПО) по специальности 54.01.20 «Графический дизайнер», утвержденного приказом Министерства образования и науки Российской Федерации от 9 декабря 2016 года № 1543, зарегистрированного Министерством юстиции России  23 декабря 2016 года,  рег. № 44916 с учетом примерной основной образовательной программы и в соответствии  со следующими нормативно-правовыми и регламентирующими документами: - Федерального закона от 29 декабря 2012 г. №273-ФЗ «Об образовании в Российской Федерации»;  - Приказ Минобрнауки России от 14 июня 2013 г. № 464 «Об утверждении Порядка организации и осуществления образовательной деятельности по образовательным программам среднего профессионального образования» (зарегистрирован Министерством юстиции Российской Федерации 30 июля 2013 г., регистрационный № 29200) (далее - Порядок организации образовательной деятельности);  - Приказ Минобрнауки России от 28 мая 2014 г. № 594 «Об утверждении Порядка разработки примерных основных образовательных программ, проведения их экспертизы и ведения реестра примерных основных образовательных программ»; - Приказ Минобрнауки России от 9 декабря 2016 года № 1543 «Об утверждении федерального государственного образовательного стандарта среднего профессионального образования по професси 54.01.20 «Графический дизайнер» (зарегистрированный Министерством юстиции Российской Федерации 12 декабря 2016 г., регистрационный №44662);   - Приказ Минобрнауки России от 16 августа 2013 г. № 968 «Об утверждении Порядка проведения государственной итоговой аттестации по образовательным программам среднего профессионального образования» (зарегистрирован Министерством юстиции Российской Федерации 1 ноября 2013 г., регистрационный № 30306);  - Приказ Минобрнауки России от 18 апреля 2013 г. № 291 «Об утверждении Положения о практике обучающихся, осваивающих основные профессиональные образовательные программы среднего профессионального образования» (зарегистрирован Министерством юстиции Российской Федерации 14 июня 2013 г., регистрационный № 28785);  - Приказ Министерства труда и социальной защиты Российской Федерации от 17 января 2017 года № 40н «Об утверждении профессионального стандарта 11.013 Графический дизайнер»(зарегистрирован Министерством юстиции Российской Федерации 27 января 2017 года, регистрационный № 45442);  - Письмо Минобрнауки России от 17.03.2015 N 06-259 «О направлении доработанных рекомендаций по организации получения среднего общего образования в пределах освоения образовательных программ среднего профессионального образования на базе основного общего образования с учетом требований федеральных государственных образовательных стандартов и получаемой профессии или специальности среднего профессионального образования; - Приказ Минобрнауки России № 885, Минпросвещения России № 390 от 5 августа 2020 г. «О практической подготовке обучающихся» (вместе с «Положением о практической под-готовке обучающихся»; - Приказ Минпросвещения России № 747 от 17 декабря 2020 г \"О внесени изменений в федеральные государственные образовательные стандарты среднего профессионального  образования   - уставом и локальными актами ОУ.  "]
[null," 2. Организация учебного процесса и режим занятий: - учебный год начинается 1 сентября и заканчивается в соответствии с «Планом учебного процесса» и расписанием занятий на учебный год; - продолжительность учебной недели – шесть дней; - для всех видов аудиторных занятий академический час составляет 45 минут; - максимальный объем учебной нагрузки обучающихся составляет 36 академических часа в неделю, включая все виды аудиторной работы.     "]
[null," 3. Вариативная часть программы подготовки квалифицированных рабочих, служащих среднего профессионального образования (далее – ППКРС) согласно ФГОС составляет 612 часов и распределяется следующим образом:  - увеличен объем общепрофессиональных дисциплин на 236 часов,  - увеличен объем профессиональных модулей на 376 часов.       "]
[null,"4. Основными видами оценки качества обучения являются текущий контроль, промежуточная аттестация и итоговая аттестация.   Текущий контроль проводится преподавателем исходя из методической целесообразности, специфики учебной дисциплины, междисциплинарного курса в форме контрольной работы, тестирования, опроса, выполнения и защиты практических и лабораторных работы, выполнения рефератов (докладов), подготовка презентаций и т.д.  Промежуточная аттестация проводится  с целью определения соответствия уровня и качества подготовки обучающегося требованиям к результатам освоения ППКРС и осуществляется в двух основных направлениях:  - оценка уровня освоения дисциплин и междисциплинарных курсов;  - оценка компетенций обучающихся.           Основными формами промежуточной аттестации являются:с учетом времени на промежуточную аттестацию (Э):  - экзамен по дисциплине;  - экзамен по междисциплинарному курсу; - комплексный экзамен по 2 и более учебным дисциплинам; - комплексный экзамен по 2 и более междисциплинарным курсам; -  экзамен (квалификационный) по профессиональному модулю; без учета времени на промежуточную аттестацию (З, ДЗ):  - зачет по дисциплине; - комплексный зачет по 2 и более дисциплинам; - дифференцированный зачет по дисциплине; - комплексный дифференцированный зачет по 2 и более дисциплинам;  - зачет по междисциплинарному курсу; - комплексный зачет по 2 и более междисциплинарным курсам; - дифференцированный зачет по междисциплинарному курсу;  - комплексный дифференцированный зачет по 2 и более междисциплинарным курсам; - зачет/дифференцированный зачет по учебной / производственной практике; - комплексный зачет/дифференцированный зачет по учебной / производственной практике по 2 и более профессиональным модулям. Экзамен (квалификационный) по профессиональному модулю, который носит комплексный характер и направлен на проверку  сформированности компетенций и готовности к выполнению основного вида  деятельности, определенных в разделе «Требования к результатам освоения образовательной программы» федерального государственного образовательного стандарта (далее – ФГОС). Итогом проверки является оценка \"отлично\", \"хорошо\", \"удовлетворительно\" или \"неудовлетворительно\", на основании которой принимается решение: «основной вид деятельности освоен / не освоен». Государственная итоговая аттестация осуществляется в виде демонстрационного экзамена. Необходимым условием допуска к ней является  освоение профессиональных модулей настоящего учебного плана соответствующих основным видам  деятельности определенных ФГОС СПО.                                                                                                                                                                       Порядок и периодичность промежуточной аттестации обучающихся, определяется графиком учебного процесса.\"    "]
[null,"5. Время, отводимое на консультации, предусматривается за счет времени, отводимого на промежуточную аттестацию. Формы проведения консультаций  групповые, индивидуальные, устные, а так же с использованием образовательного портала.      "]
[null,"6. Учебная и производственная практика проводятся в соответствии с графиком учебного процесса настоящего учебного плана. При реализации производственной практики предусматривается : практика по профилю профессии. Учебная практика направлена на формирование у обучающихся практических профессиональных умений, приобретение первоначального практического опыта, реализуется в рамках модулей ППКРС по основным видам  деятельности для последующего освоения ими общих и профессиональных компетенций по избранной профессии. Учебная практика проводится преподавателями дисциплин профессионального цикла в учебно-производственных мастерских или лабораториях ОУ.    Практика по профилю профессии направлена на формирование у обучающихся общих и профессиональных компетенций, приобретение практического опыта и реализуется в рамках модулей ППКРС по каждому из основных видов деятельности, предусмотренных ФГОС по специальности.  Практика завершается дифференцированным зачетом, отражающим уровень освоенных общих и профессиональных компетенций.     "]
[]
[null,"Согласовано"]
[]
[null,"Методист МО","В.Л. Калинина"]
[null,"Заведующий ОМПТС","О.С. Лядова"]
[null,"Методист ОМПТС","Г.А. Парадина"]
[null,"Председатель МПЦК","О.Э. Сонина"]

{"sheet":"Start","index":7,"n_rows":0,"n_cols":0,"rows_kept":0,"cut":false,"hidden":true,"merged":[]}